Department family,Entity,Date,Expense Type,Expense area,Supplier,Transaction number,AP Amount (�)
Department of Health,NHS Sheffield CCG,31/10/2018,C&M-PMS Contract Value,PRC DELEGATED CO-COMMISSIONING,ABBEY LANE SURGERY,24216111,"24,845.40 "
Department of Health,NHS Sheffield CCG,31/10/2018,C&M-PMS Prem Notional Rent,PRC DELEGATED CO-COMMISSIONING,ABBEY LANE SURGERY,24216111,"2,122.92 "
Department of Health,NHS Sheffield CCG,31/10/2018,C&M-PMS Prem Rates,PRC DELEGATED CO-COMMISSIONING,ABBEY LANE SURGERY,24216111,744.00 
Department of Health,NHS Sheffield CCG,31/10/2018,C&M-PMS QOF Aspiration,PRC DELEGATED CO-COMMISSIONING,ABBEY LANE SURGERY,24216111,"2,572.92 "
Department of Health,NHS Sheffield CCG,31/10/2018,Cont Care-Physical Disab (65+),CHC ADULT FULLY FUNDED,ABBEYCARE NURSING,24152631,"51,285.78 "
Department of Health,NHS Sheffield CCG,31/10/2018,C&M-PMS Contract Value,PRC DELEGATED CO-COMMISSIONING,AVENUE MEDICAL CENTRE SHEFFIELD,24216109,"57,506.33 "
Department of Health,NHS Sheffield CCG,31/10/2018,C&M-PMS Out of Hours Opt Outs,PRC DELEGATED CO-COMMISSIONING,AVENUE MEDICAL CENTRE SHEFFIELD,24216109,3.86 
Department of Health,NHS Sheffield CCG,31/10/2018,C&M-PMS PCO Other,PRC DELEGATED CO-COMMISSIONING,AVENUE MEDICAL CENTRE SHEFFIELD,24216109,511.39 
Department of Health,NHS Sheffield CCG,31/10/2018,C&M-PMS Prem Notional Rent,PRC DELEGATED CO-COMMISSIONING,AVENUE MEDICAL CENTRE SHEFFIELD,24216109,"5,546.67 "
Department of Health,NHS Sheffield CCG,31/10/2018,C&M-PMS Prem Rates,PRC DELEGATED CO-COMMISSIONING,AVENUE MEDICAL CENTRE SHEFFIELD,24216109,"1,002.00 "
Department of Health,NHS Sheffield CCG,31/10/2018,C&M-PMS QOF Aspiration,PRC DELEGATED CO-COMMISSIONING,AVENUE MEDICAL CENTRE SHEFFIELD,24216109,"5,705.45 "
Department of Health,NHS Sheffield CCG,31/10/2018,External Consultancy Fees,CLINICAL LEADS,BARNSLEY HOSPITAL NHS FOUNDATION TRUST,24093093,"(28,300.00)"
Department of Health,NHS Sheffield CCG,31/10/2018,Hcare Srv Rec Fdtn Trust-Contract Baseline,ACUTE COMMISSIONING,BARNSLEY HOSPITAL NHS FOUNDATION TRUST,24152457,"73,344.00 "
Department of Health,NHS Sheffield CCG,31/10/2018,External Consultancy Fees,CLINICAL LEADS,BARNSLEY HOSPITAL NHS FOUNDATION TRUST,24204725,"28,300.00 "
Department of Health,NHS Sheffield CCG,31/10/2018,Seconded-Basic Sal-Staff fm oth org,BEREAVEMENT SERVICE,BARNSLEY HOSPITAL NHS FOUNDATION TRUST,24353303,"23,190.00 "
Department of Health,NHS Sheffield CCG,31/10/2018,Seconded-Employer's NHI Costs,BEREAVEMENT SERVICE,BARNSLEY HOSPITAL NHS FOUNDATION TRUST,24353303,"2,080.00 "
Department of Health,NHS Sheffield CCG,31/10/2018,Miscellaneous Expenditure (L9),CLINICAL LEADS,BARNSLEY HOSPITAL NHS FOUNDATION TRUST,24432987,"48,785.00 "
Department of Health,NHS Sheffield CCG,31/10/2018,C&M-PMS Contract Value,PRC DELEGATED CO-COMMISSIONING,BARNSLEY ROAD SURGERY,24238049,"23,228.98 "
Department of Health,NHS Sheffield CCG,31/10/2018,C&M-PMS Prem Notional Rent,PRC DELEGATED CO-COMMISSIONING,BARNSLEY ROAD SURGERY,24238049,"2,652.17 "
Department of Health,NHS Sheffield CCG,31/10/2018,C&M-PMS QOF Aspiration,PRC DELEGATED CO-COMMISSIONING,BARNSLEY ROAD SURGERY,24238049,"2,364.70 "
Department of Health,NHS Sheffield CCG,31/10/2018,C&M-GMS Global Sum,PRC DELEGATED CO-COMMISSIONING,BASLOW ROAD & SHOREHAM STREET SURGERIES,24456693,"103,998.09 "
Department of Health,NHS Sheffield CCG,31/10/2018,C&M-GMS MPIG Correction Factor,PRC DELEGATED CO-COMMISSIONING,BASLOW ROAD & SHOREHAM STREET SURGERIES,24456693,292.43 
Department of Health,NHS Sheffield CCG,31/10/2018,C&M-GMS Prem Notional Rent,PRC DELEGATED CO-COMMISSIONING,BASLOW ROAD & SHOREHAM STREET SURGERIES,24456693,"8,511.25 "
Department of Health,NHS Sheffield CCG,31/10/2018,C&M-GMS Prem Rates,PRC DELEGATED CO-COMMISSIONING,BASLOW ROAD & SHOREHAM STREET SURGERIES,24456693,"2,273.00 "
Department of Health,NHS Sheffield CCG,31/10/2018,C&M-GMS QOF Aspiration,PRC DELEGATED CO-COMMISSIONING,BASLOW ROAD & SHOREHAM STREET SURGERIES,24456693,"10,715.96 "
Department of Health,NHS Sheffield CCG,31/10/2018,Cont Care-Physical Disab (65+),CHC ADULT FULLY FUNDED,BC SHEFFIELD LTD,24204119,"36,915.01 "
Department of Health,NHS Sheffield CCG,31/10/2018,C&M-PMS Contract Value,PRC DELEGATED CO-COMMISSIONING,BIRLEY HEALTH CENTRE,24216114,"67,621.05 "
Department of Health,NHS Sheffield CCG,31/10/2018,C&M-PMS Out of Hours Opt Outs,PRC DELEGATED CO-COMMISSIONING,BIRLEY HEALTH CENTRE,24216114,7.09 
Department of Health,NHS Sheffield CCG,31/10/2018,C&M-PMS Prem Notional Rent,PRC DELEGATED CO-COMMISSIONING,BIRLEY HEALTH CENTRE,24216114,"7,600.58 "
Department of Health,NHS Sheffield CCG,31/10/2018,C&M-PMS QOF Aspiration,PRC DELEGATED CO-COMMISSIONING,BIRLEY HEALTH CENTRE,24216114,"7,642.20 "
Department of Health,NHS Sheffield CCG,31/10/2018,Cont Care- Children,CHC CHILDREN,BLUEBELL WOOD CHILDRENS HOSPICE,24435846,"30,000.00 "
Department of Health,NHS Sheffield CCG,31/10/2018,Clinical&Medical-Independent Sector,ACUTE COMMISSIONING,BMI HEALTHCARE LTD,24204003,"84,881.31 "
Department of Health,NHS Sheffield CCG,31/10/2018,Clinical&Medical-Independent Sector,ACUTE COMMISSIONING,BMI HEALTHCARE LTD,24398051,"(28,070.20)"
Department of Health,NHS Sheffield CCG,31/10/2018,Hcare Srv Rec NHS Trust-Non Contract,NCAS/OATS,BRIGHTON AND SUSSEX UNIVERSITY HOSPITALS NHS TRUST,24260617,"30,547.31 "
Department of Health,NHS Sheffield CCG,31/10/2018,C&M-GMS Cost of Drugs -Prescribing,LOCAL ENHANCED SERVICES,BROOMHILL SURGERY,24456699,"2,875.16 "
Department of Health,NHS Sheffield CCG,31/10/2018,C&M-GMS Global Sum,PRC DELEGATED CO-COMMISSIONING,BROOMHILL SURGERY,24456699,"68,120.90 "
Department of Health,NHS Sheffield CCG,31/10/2018,C&M-GMS MPIG Correction Factor,PRC DELEGATED CO-COMMISSIONING,BROOMHILL SURGERY,24456699,502.00 
Department of Health,NHS Sheffield CCG,31/10/2018,C&M-GMS Prem Cost Rent,PRC DELEGATED CO-COMMISSIONING,BROOMHILL SURGERY,24456699,"3,380.00 "
Department of Health,NHS Sheffield CCG,31/10/2018,C&M-GMS Prem Notional Rent,PRC DELEGATED CO-COMMISSIONING,BROOMHILL SURGERY,24456699,"2,612.50 "
Department of Health,NHS Sheffield CCG,31/10/2018,C&M-GMS Prem Rates,PRC DELEGATED CO-COMMISSIONING,BROOMHILL SURGERY,24456699,"1,848.00 "
Department of Health,NHS Sheffield CCG,31/10/2018,C&M-GMS Prof Fees Prescribing,PRC DELEGATED CO-COMMISSIONING,BROOMHILL SURGERY,24456699,124.20 
Department of Health,NHS Sheffield CCG,31/10/2018,C&M-GMS QOF Aspiration,PRC DELEGATED CO-COMMISSIONING,BROOMHILL SURGERY,24456699,"6,274.17 "
Department of Health,NHS Sheffield CCG,31/10/2018,C&M-GMS IT Comm Servs -GP Practices,PRIMARY CARE IT,BT GLOBAL SERVICES,24378698,"23,669.84 "
Department of Health,NHS Sheffield CCG,31/10/2018,Computer Software/License,CORPORATE COSTS & SERVICES,BT GLOBAL SERVICES,24378698,"2,961.84 "
Department of Health,NHS Sheffield CCG,31/10/2018,C&M-GMS Global Sum,PRC DELEGATED CO-COMMISSIONING,BUCHANAN ROAD SURGERY,24474063,"38,140.34 "
Department of Health,NHS Sheffield CCG,31/10/2018,C&M-GMS MPIG Correction Factor,PRC DELEGATED CO-COMMISSIONING,BUCHANAN ROAD SURGERY,24474063,"1,310.51 "
Department of Health,NHS Sheffield CCG,31/10/2018,C&M-GMS Prem Notional Rent,PRC DELEGATED CO-COMMISSIONING,BUCHANAN ROAD SURGERY,24474063,"2,595.83 "
Department of Health,NHS Sheffield CCG,31/10/2018,C&M-GMS Prem Rates,PRC DELEGATED CO-COMMISSIONING,BUCHANAN ROAD SURGERY,24474063,864.00 
Department of Health,NHS Sheffield CCG,31/10/2018,C&M-GMS QOF Aspiration,PRC DELEGATED CO-COMMISSIONING,BUCHANAN ROAD SURGERY,24474063,"4,144.11 "
Department of Health,NHS Sheffield CCG,31/10/2018,C&M-PMS Contract Value,PRC DELEGATED CO-COMMISSIONING,BURNCROSS SURGERY,24216116,"129,314.32 "
Department of Health,NHS Sheffield CCG,31/10/2018,C&M-PMS DES Learn Dsblty Hlth Chk,PRC DELEGATED CO-COMMISSIONING,BURNCROSS SURGERY,24216116,"3,220.00 "
Department of Health,NHS Sheffield CCG,31/10/2018,C&M-PMS Prem Notional Rent,PRC DELEGATED CO-COMMISSIONING,BURNCROSS SURGERY,24216116,"14,058.33 "
Department of Health,NHS Sheffield CCG,31/10/2018,C&M-PMS QOF Aspiration,PRC DELEGATED CO-COMMISSIONING,BURNCROSS SURGERY,24216116,"16,082.74 "
Department of Health,NHS Sheffield CCG,31/10/2018,C&M-PMS Contract Value,PRC DELEGATED CO-COMMISSIONING,BURNGREAVE SURGERY,24216118,"60,655.24 "
Department of Health,NHS Sheffield CCG,31/10/2018,C&M-PMS Prem Notional Rent,PRC DELEGATED CO-COMMISSIONING,BURNGREAVE SURGERY,24216118,"6,622.92 "
Department of Health,NHS Sheffield CCG,31/10/2018,C&M-PMS Prem Rates,PRC DELEGATED CO-COMMISSIONING,BURNGREAVE SURGERY,24216118,"1,929.00 "
Department of Health,NHS Sheffield CCG,31/10/2018,C&M-PMS QOF Aspiration,PRC DELEGATED CO-COMMISSIONING,BURNGREAVE SURGERY,24216118,"4,881.27 "
Department of Health,NHS Sheffield CCG,31/10/2018,C&M-GMS Cost of Drugs -Prescribing,LOCAL ENHANCED SERVICES,CARTERKNOWLE & DORE MEDICAL PRACTICE,24456704,"3,074.83 "
Department of Health,NHS Sheffield CCG,31/10/2018,C&M-GMS Global Sum,PRC DELEGATED CO-COMMISSIONING,CARTERKNOWLE & DORE MEDICAL PRACTICE,24456704,"90,329.12 "
Department of Health,NHS Sheffield CCG,31/10/2018,C&M-GMS MPIG Correction Factor,PRC DELEGATED CO-COMMISSIONING,CARTERKNOWLE & DORE MEDICAL PRACTICE,24456704,"1,494.59 "
Department of Health,NHS Sheffield CCG,31/10/2018,C&M-GMS PCO Locum Adop/Pat/Mat,PRC DELEGATED CO-COMMISSIONING,CARTERKNOWLE & DORE MEDICAL PRACTICE,24456704,"6,194.11 "
Department of Health,NHS Sheffield CCG,31/10/2018,C&M-GMS PCO Other,PRC DELEGATED CO-COMMISSIONING,CARTERKNOWLE & DORE MEDICAL PRACTICE,24456704,838.11 
Department of Health,NHS Sheffield CCG,31/10/2018,C&M-GMS Prem Notional Rent,PRC DELEGATED CO-COMMISSIONING,CARTERKNOWLE & DORE MEDICAL PRACTICE,24456704,"7,596.50 "
Department of Health,NHS Sheffield CCG,31/10/2018,C&M-GMS Prem Rates,PRC DELEGATED CO-COMMISSIONING,CARTERKNOWLE & DORE MEDICAL PRACTICE,24456704,"1,880.00 "
Department of Health,NHS Sheffield CCG,31/10/2018,C&M-GMS Prof Fees Prescribing,PRC DELEGATED CO-COMMISSIONING,CARTERKNOWLE & DORE MEDICAL PRACTICE,24456704,220.80 
Department of Health,NHS Sheffield CCG,31/10/2018,C&M-GMS QOF Aspiration,PRC DELEGATED CO-COMMISSIONING,CARTERKNOWLE & DORE MEDICAL PRACTICE,24456704,"10,163.70 "
Department of Health,NHS Sheffield CCG,31/10/2018,C&M-GMS Cost of Drugs -Prescribing,LOCAL ENHANCED SERVICES,CHARNOCK HEALTH PRIMARY CARE CENTRE,24456701,512.15 
Department of Health,NHS Sheffield CCG,31/10/2018,C&M-GMS Global Sum,PRC DELEGATED CO-COMMISSIONING,CHARNOCK HEALTH PRIMARY CARE CENTRE,24456701,"44,831.65 "
Department of Health,NHS Sheffield CCG,31/10/2018,C&M-GMS MPIG Correction Factor,PRC DELEGATED CO-COMMISSIONING,CHARNOCK HEALTH PRIMARY CARE CENTRE,24456701,413.25 
Department of Health,NHS Sheffield CCG,31/10/2018,C&M-GMS PCO Locum Adop/Pat/Mat,PRC DELEGATED CO-COMMISSIONING,CHARNOCK HEALTH PRIMARY CARE CENTRE,24456701,"7,570.57 "
Department of Health,NHS Sheffield CCG,31/10/2018,C&M-GMS PCO Other,PRC DELEGATED CO-COMMISSIONING,CHARNOCK HEALTH PRIMARY CARE CENTRE,24456701,395.85 
Department of Health,NHS Sheffield CCG,31/10/2018,C&M-GMS Prem Actual Rent,PRC DELEGATED CO-COMMISSIONING,CHARNOCK HEALTH PRIMARY CARE CENTRE,24456701,"20,100.00 "
Department of Health,NHS Sheffield CCG,31/10/2018,C&M-GMS Prem Notional Rent,PRC DELEGATED CO-COMMISSIONING,CHARNOCK HEALTH PRIMARY CARE CENTRE,24456701,335.00 
Department of Health,NHS Sheffield CCG,31/10/2018,C&M-GMS Prem Rates,PRC DELEGATED CO-COMMISSIONING,CHARNOCK HEALTH PRIMARY CARE CENTRE,24456701,"1,247.00 "
Department of Health,NHS Sheffield CCG,31/10/2018,C&M-GMS Prof Fees Prescribing,PRC DELEGATED CO-COMMISSIONING,CHARNOCK HEALTH PRIMARY CARE CENTRE,24456701,117.30 
Department of Health,NHS Sheffield CCG,31/10/2018,C&M-GMS QOF Aspiration,PRC DELEGATED CO-COMMISSIONING,CHARNOCK HEALTH PRIMARY CARE CENTRE,24456701,"4,710.20 "
Department of Health,NHS Sheffield CCG,31/10/2018,Hcare Srv Rec Fdtn Trust-Contract Baseline,ACUTE COMMISSIONING,CHESTERFIELD ROYAL HOSPITAL NHS FOUNDATION TRUST,24204053,"105,492.00 "
Department of Health,NHS Sheffield CCG,31/10/2018,Hcare Srv Rec Fdtn Trust-Contract Baseline,ACUTE COMMISSIONING,CHESTERFIELD ROYAL HOSPITAL NHS FOUNDATION TRUST,24260848,"266,428.00 "
Department of Health,NHS Sheffield CCG,31/10/2018,Clinical&Medical-Independent Sector,ACUTE COMMISSIONING,CLAREMONT HOSPITAL,24204212,"65,047.00 "
Department of Health,NHS Sheffield CCG,31/10/2018,Voids and Subsidies,PRC DELEGATED CO-COMMISSIONING,COMMUNITY HEALTH PARTNERSHIPS LTD,24435763,"20,930.05 "
Department of Health,NHS Sheffield CCG,31/10/2018,Voids and Subsidies,RECHARGES NHS PROPERTY SERVICES LTD,COMMUNITY HEALTH PARTNERSHIPS LTD,24435763,"113,294.40 "
Department of Health,NHS Sheffield CCG,31/10/2018,C&M-GMS Cost of Drugs -Prescribing,LOCAL ENHANCED SERVICES,CROOKES PRACTICE,24456708,622.27 
Department of Health,NHS Sheffield CCG,31/10/2018,C&M-GMS Global Sum,PRC DELEGATED CO-COMMISSIONING,CROOKES PRACTICE,24456708,"53,843.48 "
Department of Health,NHS Sheffield CCG,31/10/2018,C&M-GMS MPIG Correction Factor,PRC DELEGATED CO-COMMISSIONING,CROOKES PRACTICE,24456708,"1,545.92 "
Department of Health,NHS Sheffield CCG,31/10/2018,C&M-GMS PCO Other,PRC DELEGATED CO-COMMISSIONING,CROOKES PRACTICE,24456708,559.22 
Department of Health,NHS Sheffield CCG,31/10/2018,C&M-GMS Prem Notional Rent,PRC DELEGATED CO-COMMISSIONING,CROOKES PRACTICE,24456708,"3,874.67 "
Department of Health,NHS Sheffield CCG,31/10/2018,C&M-GMS Prem Rates,PRC DELEGATED CO-COMMISSIONING,CROOKES PRACTICE,24456708,"1,476.00 "
Department of Health,NHS Sheffield CCG,31/10/2018,C&M-GMS Prof Fees Prescribing,PRC DELEGATED CO-COMMISSIONING,CROOKES PRACTICE,24456708,92.00 
Department of Health,NHS Sheffield CCG,31/10/2018,C&M-GMS QOF Aspiration,PRC DELEGATED CO-COMMISSIONING,CROOKES PRACTICE,24456708,"5,056.52 "
Department of Health,NHS Sheffield CCG,31/10/2018,C&M-PMS Contract Value,PRC DELEGATED CO-COMMISSIONING,DEEPCAR MEDICAL CENTRE,24216122,"43,491.96 "
Department of Health,NHS Sheffield CCG,31/10/2018,C&M-PMS Prem Healthcentre Rent,PRC DELEGATED CO-COMMISSIONING,DEEPCAR MEDICAL CENTRE,24216122,"29,067.58 "
Department of Health,NHS Sheffield CCG,31/10/2018,C&M-PMS QOF Aspiration,PRC DELEGATED CO-COMMISSIONING,DEEPCAR MEDICAL CENTRE,24216122,"4,182.29 "
Department of Health,NHS Sheffield CCG,31/10/2018,C&M-GMS Cost of Drugs -Prescribing,LOCAL ENHANCED SERVICES,DEVONSHIRE GREEN MEDICAL CENTRE,24456711,410.24 
Department of Health,NHS Sheffield CCG,31/10/2018,C&M-GMS Global Sum,PRC DELEGATED CO-COMMISSIONING,DEVONSHIRE GREEN MEDICAL CENTRE,24456711,"48,770.26 "
Department of Health,NHS Sheffield CCG,31/10/2018,C&M-GMS MPIG Correction Factor,PRC DELEGATED CO-COMMISSIONING,DEVONSHIRE GREEN MEDICAL CENTRE,24456711,"3,231.20 "
Department of Health,NHS Sheffield CCG,31/10/2018,C&M-GMS Prem Notional Rent,PRC DELEGATED CO-COMMISSIONING,DEVONSHIRE GREEN MEDICAL CENTRE,24456711,"5,987.50 "
Department of Health,NHS Sheffield CCG,31/10/2018,C&M-GMS Prem Rates,PRC DELEGATED CO-COMMISSIONING,DEVONSHIRE GREEN MEDICAL CENTRE,24456711,866.00 
Department of Health,NHS Sheffield CCG,31/10/2018,C&M-GMS Prof Fees Prescribing,PRC DELEGATED CO-COMMISSIONING,DEVONSHIRE GREEN MEDICAL CENTRE,24456711,82.80 
Department of Health,NHS Sheffield CCG,31/10/2018,C&M-GMS QOF Aspiration,PRC DELEGATED CO-COMMISSIONING,DEVONSHIRE GREEN MEDICAL CENTRE,24456711,"4,641.81 "
Department of Health,NHS Sheffield CCG,31/10/2018,Hcare Srv Rec Fdtn Trust-Contract Baseline,ACUTE COMMISSIONING,DONCASTER AND BASSETLAW HOSPITALS NHS FOUNDATION TRUST,24204067,"35,160.00 "
Department of Health,NHS Sheffield CCG,31/10/2018,Miscellaneous Expenditure (L9),BEREAVEMENT SERVICE,DONCASTER AND BASSETLAW HOSPITALS NHS FOUNDATION TRUST,24500614,(1.10)
Department of Health,NHS Sheffield CCG,31/10/2018,Oth Travel Costs-Car Mileage,BEREAVEMENT SERVICE,DONCASTER AND BASSETLAW HOSPITALS NHS FOUNDATION TRUST,24500614,298.30 
Department of Health,NHS Sheffield CCG,31/10/2018,Seconded-Basic Sal-Staff fm oth org,BEREAVEMENT SERVICE,DONCASTER AND BASSETLAW HOSPITALS NHS FOUNDATION TRUST,24500614,"51,350.15 "
Department of Health,NHS Sheffield CCG,31/10/2018,Seconded-Employer's NHI Costs,BEREAVEMENT SERVICE,DONCASTER AND BASSETLAW HOSPITALS NHS FOUNDATION TRUST,24500614,"5,576.83 "
Department of Health,NHS Sheffield CCG,31/10/2018,Seconded-Basic Sal-Staff fm oth org,BEREAVEMENT SERVICE,DONCASTER AND BASSETLAW HOSPITALS NHS FOUNDATION TRUST,24518123,"54,350.51 "
Department of Health,NHS Sheffield CCG,31/10/2018,Seconded-Basic Sal-Staff fm oth org,BEREAVEMENT SERVICE,DONCASTER AND BASSETLAW HOSPITALS NHS FOUNDATION TRUST,24518139,"(54,350.51)"
Department of Health,NHS Sheffield CCG,31/10/2018,Hcare Srv Rec Fdtn Trust-Non Contract,CLINICAL LEADS,DONCASTER AND BASSETLAW HOSPITALS NHS FOUNDATION TRUST,24524260,"149,150.50 "
Department of Health,NHS Sheffield CCG,31/10/2018,C&M-PMS Contract Value,PRC DELEGATED CO-COMMISSIONING,DOVERCOURT SURGERY,24216124,"76,803.41 "
Department of Health,NHS Sheffield CCG,31/10/2018,C&M-PMS Out of Hours Opt Outs,PRC DELEGATED CO-COMMISSIONING,DOVERCOURT SURGERY,24216124,7.91 
Department of Health,NHS Sheffield CCG,31/10/2018,C&M-PMS PCO Other,PRC DELEGATED CO-COMMISSIONING,DOVERCOURT SURGERY,24216124,584.56 
Department of Health,NHS Sheffield CCG,31/10/2018,C&M-PMS Prem Actual Rent,PRC DELEGATED CO-COMMISSIONING,DOVERCOURT SURGERY,24216124,"12,400.00 "
Department of Health,NHS Sheffield CCG,31/10/2018,C&M-PMS Prem Notional Rent,PRC DELEGATED CO-COMMISSIONING,DOVERCOURT SURGERY,24216124,"1,708.34 "
Department of Health,NHS Sheffield CCG,31/10/2018,C&M-PMS Prem Water Rates,PRC DELEGATED CO-COMMISSIONING,DOVERCOURT SURGERY,24216124,387.74 
Department of Health,NHS Sheffield CCG,31/10/2018,C&M-PMS QOF Aspiration,PRC DELEGATED CO-COMMISSIONING,DOVERCOURT SURGERY,24216124,"7,443.07 "
Department of Health,NHS Sheffield CCG,31/10/2018,C&M-PMS Contract Value,PRC DELEGATED CO-COMMISSIONING,DR MEHROTRA & PARTNER,24216126,"29,586.25 "
Department of Health,NHS Sheffield CCG,31/10/2018,C&M-PMS DES Learn Dsblty Hlth Chk,PRC DELEGATED CO-COMMISSIONING,DR MEHROTRA & PARTNER,24216126,420.00 
Department of Health,NHS Sheffield CCG,31/10/2018,C&M-PMS Prem Actual Rent,PRC DELEGATED CO-COMMISSIONING,DR MEHROTRA & PARTNER,24216126,"2,650.00 "
Department of Health,NHS Sheffield CCG,31/10/2018,C&M-PMS Prem Notional Rent,PRC DELEGATED CO-COMMISSIONING,DR MEHROTRA & PARTNER,24216126,"5,157.29 "
Department of Health,NHS Sheffield CCG,31/10/2018,C&M-PMS Prem Rates,PRC DELEGATED CO-COMMISSIONING,DR MEHROTRA & PARTNER,24216126,"1,463.00 "
Department of Health,NHS Sheffield CCG,31/10/2018,C&M-PMS Prem Water Rates,PRC DELEGATED CO-COMMISSIONING,DR MEHROTRA & PARTNER,24216126,389.26 
Department of Health,NHS Sheffield CCG,31/10/2018,C&M-PMS QOF Aspiration,PRC DELEGATED CO-COMMISSIONING,DR MEHROTRA & PARTNER,24216126,"3,078.44 "
Department of Health,NHS Sheffield CCG,31/10/2018,C&M-PMS Contract Value,PRC DELEGATED CO-COMMISSIONING,DR MILNER & PARTNERS,24216127,(196.42)
Department of Health,NHS Sheffield CCG,31/10/2018,C&M-PMS GP Statutory Levy,PRC DELEGATED CO-COMMISSIONING,DR MILNER & PARTNERS,24216127,(373.14)
Department of Health,NHS Sheffield CCG,31/10/2018,C&M-PMS Out of Hours Opt Outs,PRC DELEGATED CO-COMMISSIONING,DR MILNER & PARTNERS,24216127,"(3,780.49)"
Department of Health,NHS Sheffield CCG,31/10/2018,C&M-PMS Contract Value,PRC DELEGATED CO-COMMISSIONING,DR MILNER & PARTNERS,24216128,"80,177.53 "
Department of Health,NHS Sheffield CCG,31/10/2018,C&M-PMS Out of Hours Opt Outs,PRC DELEGATED CO-COMMISSIONING,DR MILNER & PARTNERS,24216128,9.66 
Department of Health,NHS Sheffield CCG,31/10/2018,C&M-PMS Prem Actual Rent,PRC DELEGATED CO-COMMISSIONING,DR MILNER & PARTNERS,24216128,"11,382.00 "
Department of Health,NHS Sheffield CCG,31/10/2018,C&M-PMS Prem Notional Rent,PRC DELEGATED CO-COMMISSIONING,DR MILNER & PARTNERS,24216128,"4,462.42 "
Department of Health,NHS Sheffield CCG,31/10/2018,C&M-PMS Prem Rates,PRC DELEGATED CO-COMMISSIONING,DR MILNER & PARTNERS,24216128,"2,464.00 "
Department of Health,NHS Sheffield CCG,31/10/2018,C&M-PMS Prem Water Rates,PRC DELEGATED CO-COMMISSIONING,DR MILNER & PARTNERS,24216128,657.90 
Department of Health,NHS Sheffield CCG,31/10/2018,C&M-PMS QOF Aspiration,PRC DELEGATED CO-COMMISSIONING,DR MILNER & PARTNERS,24216128,"6,553.23 "
Department of Health,NHS Sheffield CCG,31/10/2018,C&M-GMS Cost of Drugs -Prescribing,LOCAL ENHANCED SERVICES,DUKE MEDICAL CENTRE,24456718,"2,201.18 "
Department of Health,NHS Sheffield CCG,31/10/2018,C&M-GMS Global Sum,PRC DELEGATED CO-COMMISSIONING,DUKE MEDICAL CENTRE,24456718,"62,012.11 "
Department of Health,NHS Sheffield CCG,31/10/2018,C&M-GMS MPIG Correction Factor,PRC DELEGATED CO-COMMISSIONING,DUKE MEDICAL CENTRE,24456718,612.51 
Department of Health,NHS Sheffield CCG,31/10/2018,C&M-GMS PCO Other,PRC DELEGATED CO-COMMISSIONING,DUKE MEDICAL CENTRE,24456718,495.17 
Department of Health,NHS Sheffield CCG,31/10/2018,C&M-GMS Prem Notional Rent,PRC DELEGATED CO-COMMISSIONING,DUKE MEDICAL CENTRE,24456718,"5,721.67 "
Department of Health,NHS Sheffield CCG,31/10/2018,C&M-GMS Prem Rates,PRC DELEGATED CO-COMMISSIONING,DUKE MEDICAL CENTRE,24456718,"1,098.00 "
Department of Health,NHS Sheffield CCG,31/10/2018,C&M-GMS Prof Fees Prescribing,PRC DELEGATED CO-COMMISSIONING,DUKE MEDICAL CENTRE,24456718,386.40 
Department of Health,NHS Sheffield CCG,31/10/2018,C&M-GMS QOF Aspiration,PRC DELEGATED CO-COMMISSIONING,DUKE MEDICAL CENTRE,24456718,"4,948.64 "
Department of Health,NHS Sheffield CCG,31/10/2018,C&M-PMS Contract Value,PRC DELEGATED CO-COMMISSIONING,DUNNINC ROAD SURGERY,24216130,"25,341.64 "
Department of Health,NHS Sheffield CCG,31/10/2018,C&M-PMS Prem Notional Rent,PRC DELEGATED CO-COMMISSIONING,DUNNINC ROAD SURGERY,24216130,"1,664.58 "
Department of Health,NHS Sheffield CCG,31/10/2018,C&M-PMS QOF Aspiration,PRC DELEGATED CO-COMMISSIONING,DUNNINC ROAD SURGERY,24216130,"2,554.49 "
Department of Health,NHS Sheffield CCG,31/10/2018,C&M-PMS Contract Value,PRC DELEGATED CO-COMMISSIONING,DYKES HALL MEDICAL CENTRE,24216132,"77,603.44 "
Department of Health,NHS Sheffield CCG,31/10/2018,C&M-PMS Out of Hours Opt Outs,PRC DELEGATED CO-COMMISSIONING,DYKES HALL MEDICAL CENTRE,24216132,12.02 
Department of Health,NHS Sheffield CCG,31/10/2018,C&M-PMS Prem Notional Rent,PRC DELEGATED CO-COMMISSIONING,DYKES HALL MEDICAL CENTRE,24216132,"5,377.08 "
Department of Health,NHS Sheffield CCG,31/10/2018,C&M-PMS Prem Rates,PRC DELEGATED CO-COMMISSIONING,DYKES HALL MEDICAL CENTRE,24216132,"1,039.00 "
Department of Health,NHS Sheffield CCG,31/10/2018,C&M-PMS QOF Aspiration,PRC DELEGATED CO-COMMISSIONING,DYKES HALL MEDICAL CENTRE,24216132,"8,079.17 "
Department of Health,NHS Sheffield CCG,31/10/2018,C&M-APMS LES Basket of Procedures,LOCAL ENHANCED SERVICES,DYKES HALL MEDICAL CENTRE,24246975,"35,576.00 "
Department of Health,NHS Sheffield CCG,31/10/2018,C&M-PMS Contract Value,PRC DELEGATED CO-COMMISSIONING,EAST BANK MEDICAL CENTRE,24216134,"49,837.45 "
Department of Health,NHS Sheffield CCG,31/10/2018,C&M-PMS Prem Notional Rent,PRC DELEGATED CO-COMMISSIONING,EAST BANK MEDICAL CENTRE,24216134,"10,583.34 "
Department of Health,NHS Sheffield CCG,31/10/2018,C&M-PMS Prem Rates,PRC DELEGATED CO-COMMISSIONING,EAST BANK MEDICAL CENTRE,24216134,"2,729.00 "
Department of Health,NHS Sheffield CCG,31/10/2018,C&M-PMS QOF Aspiration,PRC DELEGATED CO-COMMISSIONING,EAST BANK MEDICAL CENTRE,24216134,"4,881.64 "
Department of Health,NHS Sheffield CCG,31/10/2018,C&M-GMS Cost of Drugs -Prescribing,LOCAL ENHANCED SERVICES,ECCLESFIELD GROUP PRACTICE,24456715,"3,035.39 "
Department of Health,NHS Sheffield CCG,31/10/2018,C&M-GMS Global Sum,PRC DELEGATED CO-COMMISSIONING,ECCLESFIELD GROUP PRACTICE,24456715,"72,065.93 "
Department of Health,NHS Sheffield CCG,31/10/2018,C&M-GMS PCO Other,PRC DELEGATED CO-COMMISSIONING,ECCLESFIELD GROUP PRACTICE,24456715,572.78 
Department of Health,NHS Sheffield CCG,31/10/2018,C&M-GMS Prem Notional Rent,PRC DELEGATED CO-COMMISSIONING,ECCLESFIELD GROUP PRACTICE,24456715,"6,805.42 "
Department of Health,NHS Sheffield CCG,31/10/2018,C&M-GMS Prem Rates,PRC DELEGATED CO-COMMISSIONING,ECCLESFIELD GROUP PRACTICE,24456715,"1,278.00 "
Department of Health,NHS Sheffield CCG,31/10/2018,C&M-GMS Prof Fees Prescribing,PRC DELEGATED CO-COMMISSIONING,ECCLESFIELD GROUP PRACTICE,24456715,368.00 
Department of Health,NHS Sheffield CCG,31/10/2018,C&M-GMS QOF Aspiration,PRC DELEGATED CO-COMMISSIONING,ECCLESFIELD GROUP PRACTICE,24456715,"8,811.44 "
Department of Health,NHS Sheffield CCG,31/10/2018,C&M-GMS Cost of Drugs -Prescribing,LOCAL ENHANCED SERVICES,ELM LANE SURGERY,24474064,"1,743.52 "
Department of Health,NHS Sheffield CCG,31/10/2018,C&M-GMS Global Sum,PRC DELEGATED CO-COMMISSIONING,ELM LANE SURGERY,24474064,"42,330.96 "
Department of Health,NHS Sheffield CCG,31/10/2018,C&M-GMS MPIG Correction Factor,PRC DELEGATED CO-COMMISSIONING,ELM LANE SURGERY,24474064,838.53 
Department of Health,NHS Sheffield CCG,31/10/2018,C&M-GMS Prem Notional Rent,PRC DELEGATED CO-COMMISSIONING,ELM LANE SURGERY,24474064,"6,698.00 "
Department of Health,NHS Sheffield CCG,31/10/2018,C&M-GMS Prem Rates,PRC DELEGATED CO-COMMISSIONING,ELM LANE SURGERY,24474064,"1,340.00 "
Department of Health,NHS Sheffield CCG,31/10/2018,C&M-GMS Prof Fees Prescribing,PRC DELEGATED CO-COMMISSIONING,ELM LANE SURGERY,24474064,184.00 
Department of Health,NHS Sheffield CCG,31/10/2018,C&M-GMS QOF Aspiration,PRC DELEGATED CO-COMMISSIONING,ELM LANE SURGERY,24474064,"4,467.14 "
Department of Health,NHS Sheffield CCG,31/10/2018,Cont Care-Learning Disab(<65),CHC ADULT FULLY FUNDED,EMERALD CARE SERVICES LTD,24319563,"38,724.55 "
Department of Health,NHS Sheffield CCG,31/10/2018,Cont Care-Physical Disab (<65),CHC ADULT FULLY FUNDED,FAIRWINDS HEALTH CARE LTD,24204143,"39,203.66 "
Department of Health,NHS Sheffield CCG,31/10/2018,C&M-PMS Contract Value,PRC DELEGATED CO-COMMISSIONING,FALKLAND HOUSE,24216138,"27,510.38 "
Department of Health,NHS Sheffield CCG,31/10/2018,C&M-PMS Out of Hours Opt Outs,PRC DELEGATED CO-COMMISSIONING,FALKLAND HOUSE,24216138,7.26 
Department of Health,NHS Sheffield CCG,31/10/2018,C&M-PMS PCO Other,PRC DELEGATED CO-COMMISSIONING,FALKLAND HOUSE,24216138,307.67 
Department of Health,NHS Sheffield CCG,31/10/2018,C&M-PMS Prem Notional Rent,PRC DELEGATED CO-COMMISSIONING,FALKLAND HOUSE,24216138,"1,866.67 "
Department of Health,NHS Sheffield CCG,31/10/2018,C&M-PMS Prem Rates,PRC DELEGATED CO-COMMISSIONING,FALKLAND HOUSE,24216138,756.00 
Department of Health,NHS Sheffield CCG,31/10/2018,C&M-PMS QOF Aspiration,PRC DELEGATED CO-COMMISSIONING,FALKLAND HOUSE,24216138,"2,902.49 "
Department of Health,NHS Sheffield CCG,31/10/2018,C&M-GMS Cost of Drugs -Prescribing,LOCAL ENHANCED SERVICES,FAR LANE MEDICAL CENTRE,24456725,347.92 
Department of Health,NHS Sheffield CCG,31/10/2018,C&M-GMS DES Learn Dsblty Hlth Chk,PRC DELEGATED CO-COMMISSIONING,FAR LANE MEDICAL CENTRE,24456725,140.00 
Department of Health,NHS Sheffield CCG,31/10/2018,C&M-GMS Global Sum,PRC DELEGATED CO-COMMISSIONING,FAR LANE MEDICAL CENTRE,24456725,"58,954.13 "
Department of Health,NHS Sheffield CCG,31/10/2018,C&M-GMS PCO Other,PRC DELEGATED CO-COMMISSIONING,FAR LANE MEDICAL CENTRE,24456725,518.33 
Department of Health,NHS Sheffield CCG,31/10/2018,C&M-GMS Prem Notional Rent,PRC DELEGATED CO-COMMISSIONING,FAR LANE MEDICAL CENTRE,24456725,"3,462.50 "
Department of Health,NHS Sheffield CCG,31/10/2018,C&M-GMS Prem Rates,PRC DELEGATED CO-COMMISSIONING,FAR LANE MEDICAL CENTRE,24456725,"1,114.00 "
Department of Health,NHS Sheffield CCG,31/10/2018,C&M-GMS Prem Water Rates,PRC DELEGATED CO-COMMISSIONING,FAR LANE MEDICAL CENTRE,24456725,90.62 
Department of Health,NHS Sheffield CCG,31/10/2018,C&M-GMS Prof Fees Prescribing,PRC DELEGATED CO-COMMISSIONING,FAR LANE MEDICAL CENTRE,24456725,131.10 
Department of Health,NHS Sheffield CCG,31/10/2018,C&M-GMS QOF Aspiration,PRC DELEGATED CO-COMMISSIONING,FAR LANE MEDICAL CENTRE,24456725,"5,824.23 "
Department of Health,NHS Sheffield CCG,31/10/2018,C&M-PMS Contract Value,PRC DELEGATED CO-COMMISSIONING,FIRTH PARK SURGERY,24216136,"78,473.01 "
Department of Health,NHS Sheffield CCG,31/10/2018,C&M-PMS Prem Notional Rent,PRC DELEGATED CO-COMMISSIONING,FIRTH PARK SURGERY,24216136,"4,500.00 "
Department of Health,NHS Sheffield CCG,31/10/2018,C&M-PMS Prem Rates,PRC DELEGATED CO-COMMISSIONING,FIRTH PARK SURGERY,24216136,"1,330.00 "
Department of Health,NHS Sheffield CCG,31/10/2018,C&M-PMS Prem Water Rates,PRC DELEGATED CO-COMMISSIONING,FIRTH PARK SURGERY,24216136,271.56 
Department of Health,NHS Sheffield CCG,31/10/2018,C&M-PMS QOF Aspiration,PRC DELEGATED CO-COMMISSIONING,FIRTH PARK SURGERY,24216136,"7,359.15 "
Department of Health,NHS Sheffield CCG,31/10/2018,C&M-GMS Cost of Drugs -Prescribing,LOCAL ENHANCED SERVICES,FLOWERS HEALTH CENTRE,24456795,538.36 
Department of Health,NHS Sheffield CCG,31/10/2018,C&M-GMS Global Sum,PRC DELEGATED CO-COMMISSIONING,FLOWERS HEALTH CENTRE,24456795,"38,903.24 "
Department of Health,NHS Sheffield CCG,31/10/2018,C&M-GMS MPIG Correction Factor,PRC DELEGATED CO-COMMISSIONING,FLOWERS HEALTH CENTRE,24456795,"1,476.31 "
Department of Health,NHS Sheffield CCG,31/10/2018,C&M-GMS Prem Healthcentre Rent,PRC DELEGATED CO-COMMISSIONING,FLOWERS HEALTH CENTRE,24456795,"33,513.30 "
Department of Health,NHS Sheffield CCG,31/10/2018,C&M-GMS Prof Fees Prescribing,PRC DELEGATED CO-COMMISSIONING,FLOWERS HEALTH CENTRE,24456795,115.00 
Department of Health,NHS Sheffield CCG,31/10/2018,C&M-GMS QOF Aspiration,PRC DELEGATED CO-COMMISSIONING,FLOWERS HEALTH CENTRE,24456795,"4,241.34 "
Department of Health,NHS Sheffield CCG,31/10/2018,Cont Care-Physical Disab (<65),CHC ADULT FULLY FUNDED,FOUR SEASONS HEALTH CARE LTD,24204178,"40,189.54 "
Department of Health,NHS Sheffield CCG,31/10/2018,C&M-PMS Contract Value,PRC DELEGATED CO-COMMISSIONING,FOXHILL MEDICAL CENTRE SHEFFIELD,24216185,"55,413.07 "
Department of Health,NHS Sheffield CCG,31/10/2018,C&M-PMS PCO Locum Adop/Pat/Mat,PRC DELEGATED CO-COMMISSIONING,FOXHILL MEDICAL CENTRE SHEFFIELD,24216185,"10,509.12 "
Department of Health,NHS Sheffield CCG,31/10/2018,C&M-PMS PCO Other,PRC DELEGATED CO-COMMISSIONING,FOXHILL MEDICAL CENTRE SHEFFIELD,24216185,446.84 
Department of Health,NHS Sheffield CCG,31/10/2018,C&M-PMS Prem Healthcentre Rent,PRC DELEGATED CO-COMMISSIONING,FOXHILL MEDICAL CENTRE SHEFFIELD,24216185,"46,751.16 "
Department of Health,NHS Sheffield CCG,31/10/2018,C&M-PMS QOF Aspiration,PRC DELEGATED CO-COMMISSIONING,FOXHILL MEDICAL CENTRE SHEFFIELD,24216185,"5,580.51 "
Department of Health,NHS Sheffield CCG,31/10/2018,C&M-PMS Contract Value,PRC DELEGATED CO-COMMISSIONING,GLEADLESS MEDICAL CENTRE,24216139,(339.66)
Department of Health,NHS Sheffield CCG,31/10/2018,C&M-PMS GP Statutory Levy,PRC DELEGATED CO-COMMISSIONING,GLEADLESS MEDICAL CENTRE,24216139,(309.09)
Department of Health,NHS Sheffield CCG,31/10/2018,C&M-PMS Out of Hours Opt Outs,PRC DELEGATED CO-COMMISSIONING,GLEADLESS MEDICAL CENTRE,24216139,"(3,472.79)"
Department of Health,NHS Sheffield CCG,31/10/2018,C&M-PMS Contract Value,PRC DELEGATED CO-COMMISSIONING,GLEADLESS MEDICAL CENTRE,24216140,"73,917.35 "
Department of Health,NHS Sheffield CCG,31/10/2018,C&M-PMS Out of Hours Opt Outs,PRC DELEGATED CO-COMMISSIONING,GLEADLESS MEDICAL CENTRE,24216140,16.70 
Department of Health,NHS Sheffield CCG,31/10/2018,C&M-PMS PCO Other,PRC DELEGATED CO-COMMISSIONING,GLEADLESS MEDICAL CENTRE,24216140,619.11 
Department of Health,NHS Sheffield CCG,31/10/2018,C&M-PMS Prem Notional Rent,PRC DELEGATED CO-COMMISSIONING,GLEADLESS MEDICAL CENTRE,24216140,"6,750.00 "
Department of Health,NHS Sheffield CCG,31/10/2018,C&M-PMS Prem Rates,PRC DELEGATED CO-COMMISSIONING,GLEADLESS MEDICAL CENTRE,24216140,"2,615.02 "
Department of Health,NHS Sheffield CCG,31/10/2018,C&M-PMS Prem Water Rates,PRC DELEGATED CO-COMMISSIONING,GLEADLESS MEDICAL CENTRE,24216140,283.73 
Department of Health,NHS Sheffield CCG,31/10/2018,C&M-PMS QOF Aspiration,PRC DELEGATED CO-COMMISSIONING,GLEADLESS MEDICAL CENTRE,24216140,"7,712.98 "
Department of Health,NHS Sheffield CCG,31/10/2018,C&M-GMS Cost of Drugs -Prescribing,LOCAL ENHANCED SERVICES,GRENOSIDE SURGERY,24456733,"2,262.30 "
Department of Health,NHS Sheffield CCG,31/10/2018,C&M-GMS Global Sum,PRC DELEGATED CO-COMMISSIONING,GRENOSIDE SURGERY,24456733,"61,514.53 "
Department of Health,NHS Sheffield CCG,31/10/2018,C&M-GMS Prem Notional Rent,PRC DELEGATED CO-COMMISSIONING,GRENOSIDE SURGERY,24456733,"8,110.42 "
Department of Health,NHS Sheffield CCG,31/10/2018,C&M-GMS Prem Rates,PRC DELEGATED CO-COMMISSIONING,GRENOSIDE SURGERY,24456733,"1,916.00 "
Department of Health,NHS Sheffield CCG,31/10/2018,C&M-GMS Prof Fees Prescribing,PRC DELEGATED CO-COMMISSIONING,GRENOSIDE SURGERY,24456733,121.90 
Department of Health,NHS Sheffield CCG,31/10/2018,C&M-GMS QOF Aspiration,PRC DELEGATED CO-COMMISSIONING,GRENOSIDE SURGERY,24456733,"5,655.38 "
Department of Health,NHS Sheffield CCG,31/10/2018,C&M-GMS Cost of Drugs -Prescribing,LOCAL ENHANCED SERVICES,GREYSTONES MEDICAL CENTRE,24456735,342.81 
Department of Health,NHS Sheffield CCG,31/10/2018,C&M-GMS Global Sum,PRC DELEGATED CO-COMMISSIONING,GREYSTONES MEDICAL CENTRE,24456735,"20,781.88 "
Department of Health,NHS Sheffield CCG,31/10/2018,C&M-GMS MPIG Correction Factor,PRC DELEGATED CO-COMMISSIONING,GREYSTONES MEDICAL CENTRE,24456735,"1,104.46 "
Department of Health,NHS Sheffield CCG,31/10/2018,C&M-GMS PCO Other,PRC DELEGATED CO-COMMISSIONING,GREYSTONES MEDICAL CENTRE,24456735,292.44 
Department of Health,NHS Sheffield CCG,31/10/2018,C&M-GMS Prem Notional Rent,PRC DELEGATED CO-COMMISSIONING,GREYSTONES MEDICAL CENTRE,24456735,"2,885.42 "
Department of Health,NHS Sheffield CCG,31/10/2018,C&M-GMS Prem Rates,PRC DELEGATED CO-COMMISSIONING,GREYSTONES MEDICAL CENTRE,24456735,538.00 
Department of Health,NHS Sheffield CCG,31/10/2018,C&M-GMS Prem Water Rates,PRC DELEGATED CO-COMMISSIONING,GREYSTONES MEDICAL CENTRE,24456735,97.84 
Department of Health,NHS Sheffield CCG,31/10/2018,C&M-GMS Prof Fees Prescribing,PRC DELEGATED CO-COMMISSIONING,GREYSTONES MEDICAL CENTRE,24456735,55.20 
Department of Health,NHS Sheffield CCG,31/10/2018,C&M-GMS QOF Aspiration,PRC DELEGATED CO-COMMISSIONING,GREYSTONES MEDICAL CENTRE,24456735,"2,246.27 "
Department of Health,NHS Sheffield CCG,31/10/2018,C&M-PMS Contract Value,PRC DELEGATED CO-COMMISSIONING,HACKENTHORPE MEDICAL CENTRE,24216142,"51,499.96 "
Department of Health,NHS Sheffield CCG,31/10/2018,C&M-PMS PCO Other,PRC DELEGATED CO-COMMISSIONING,HACKENTHORPE MEDICAL CENTRE,24216142,480.78 
Department of Health,NHS Sheffield CCG,31/10/2018,C&M-PMS Prem Notional Rent,PRC DELEGATED CO-COMMISSIONING,HACKENTHORPE MEDICAL CENTRE,24216142,"4,981.25 "
Department of Health,NHS Sheffield CCG,31/10/2018,C&M-PMS Prem Rates,PRC DELEGATED CO-COMMISSIONING,HACKENTHORPE MEDICAL CENTRE,24216142,"1,196.00 "
Department of Health,NHS Sheffield CCG,31/10/2018,C&M-PMS QOF Aspiration,PRC DELEGATED CO-COMMISSIONING,HACKENTHORPE MEDICAL CENTRE,24216142,"6,346.88 "
Department of Health,NHS Sheffield CCG,31/10/2018,C&M-GMS Cost of Drugs -Prescribing,LOCAL ENHANCED SERVICES,HANDSWORTH MEDICAL PRACTICE SHEFFIELD,24456731,986.90 
Department of Health,NHS Sheffield CCG,31/10/2018,C&M-GMS Global Sum,PRC DELEGATED CO-COMMISSIONING,HANDSWORTH MEDICAL PRACTICE SHEFFIELD,24456731,"80,357.02 "
Department of Health,NHS Sheffield CCG,31/10/2018,C&M-GMS Prem Notional Rent,PRC DELEGATED CO-COMMISSIONING,HANDSWORTH MEDICAL PRACTICE SHEFFIELD,24456731,"3,321.66 "
Department of Health,NHS Sheffield CCG,31/10/2018,C&M-GMS Prem Water Rates,PRC DELEGATED CO-COMMISSIONING,HANDSWORTH MEDICAL PRACTICE SHEFFIELD,24456731,308.01 
Department of Health,NHS Sheffield CCG,31/10/2018,C&M-GMS Prof Fees Prescribing,PRC DELEGATED CO-COMMISSIONING,HANDSWORTH MEDICAL PRACTICE SHEFFIELD,24456731,236.90 
Department of Health,NHS Sheffield CCG,31/10/2018,C&M-GMS QOF Aspiration,PRC DELEGATED CO-COMMISSIONING,HANDSWORTH MEDICAL PRACTICE SHEFFIELD,24456731,"7,379.76 "
Department of Health,NHS Sheffield CCG,31/10/2018,C&M-GMS DES Extended Hours Access,PRC DELEGATED CO-COMMISSIONING,HAROLD STREET MEDICAL CENTRE,24456728,609.43 
Department of Health,NHS Sheffield CCG,31/10/2018,C&M-GMS Global Sum,PRC DELEGATED CO-COMMISSIONING,HAROLD STREET MEDICAL CENTRE,24456728,"22,501.79 "
Department of Health,NHS Sheffield CCG,31/10/2018,C&M-GMS PCO Other,PRC DELEGATED CO-COMMISSIONING,HAROLD STREET MEDICAL CENTRE,24456728,138.11 
Department of Health,NHS Sheffield CCG,31/10/2018,C&M-GMS Prem Notional Rent,PRC DELEGATED CO-COMMISSIONING,HAROLD STREET MEDICAL CENTRE,24456728,"4,675.00 "
Department of Health,NHS Sheffield CCG,31/10/2018,C&M-GMS QOF Aspiration,PRC DELEGATED CO-COMMISSIONING,HAROLD STREET MEDICAL CENTRE,24456728,"2,464.80 "
Department of Health,NHS Sheffield CCG,31/10/2018,C&M-GMS Cost of Drugs -Prescribing,LOCAL ENHANCED SERVICES,HEALTH CARE SURGERY,24456740,"1,023.89 "
Department of Health,NHS Sheffield CCG,31/10/2018,C&M-GMS DES Learn Dsblty Hlth Chk,PRC DELEGATED CO-COMMISSIONING,HEALTH CARE SURGERY,24456740,420.00 
Department of Health,NHS Sheffield CCG,31/10/2018,C&M-GMS Global Sum,PRC DELEGATED CO-COMMISSIONING,HEALTH CARE SURGERY,24456740,"41,050.79 "
Department of Health,NHS Sheffield CCG,31/10/2018,C&M-GMS MPIG Correction Factor,PRC DELEGATED CO-COMMISSIONING,HEALTH CARE SURGERY,24456740,780.02 
Department of Health,NHS Sheffield CCG,31/10/2018,C&M-GMS PCO Other,PRC DELEGATED CO-COMMISSIONING,HEALTH CARE SURGERY,24456740,373.85 
Department of Health,NHS Sheffield CCG,31/10/2018,C&M-GMS Prem Notional Rent,PRC DELEGATED CO-COMMISSIONING,HEALTH CARE SURGERY,24456740,"3,862.50 "
Department of Health,NHS Sheffield CCG,31/10/2018,C&M-GMS Prem Rates,PRC DELEGATED CO-COMMISSIONING,HEALTH CARE SURGERY,24456740,574.00 
Department of Health,NHS Sheffield CCG,31/10/2018,C&M-GMS Prof Fees Prescribing,PRC DELEGATED CO-COMMISSIONING,HEALTH CARE SURGERY,24456740,101.20 
Department of Health,NHS Sheffield CCG,31/10/2018,C&M-GMS QOF Aspiration,PRC DELEGATED CO-COMMISSIONING,HEALTH CARE SURGERY,24456740,"3,944.28 "
Department of Health,NHS Sheffield CCG,31/10/2018,C&M-GMS Cost of Drugs -Prescribing,LOCAL ENHANCED SERVICES,HEELEY GREEN SURGERY,24474065,266.42 
Department of Health,NHS Sheffield CCG,31/10/2018,C&M-GMS Global Sum,PRC DELEGATED CO-COMMISSIONING,HEELEY GREEN SURGERY,24474065,"45,517.65 "
Department of Health,NHS Sheffield CCG,31/10/2018,C&M-GMS MPIG Correction Factor,PRC DELEGATED CO-COMMISSIONING,HEELEY GREEN SURGERY,24474065,376.20 
Department of Health,NHS Sheffield CCG,31/10/2018,C&M-GMS PCO Other,PRC DELEGATED CO-COMMISSIONING,HEELEY GREEN SURGERY,24474065,"3,375.67 "
Department of Health,NHS Sheffield CCG,31/10/2018,C&M-GMS Prem Notional Rent,PRC DELEGATED CO-COMMISSIONING,HEELEY GREEN SURGERY,24474065,"3,254.17 "
Department of Health,NHS Sheffield CCG,31/10/2018,C&M-GMS Prof Fees Prescribing,PRC DELEGATED CO-COMMISSIONING,HEELEY GREEN SURGERY,24474065,50.60 
Department of Health,NHS Sheffield CCG,31/10/2018,C&M-GMS QOF Aspiration,PRC DELEGATED CO-COMMISSIONING,HEELEY GREEN SURGERY,24474065,"4,672.20 "
Department of Health,NHS Sheffield CCG,31/10/2018,C&M-GMS Cost of Drugs -Prescribing,LOCAL ENHANCED SERVICES,HOLLIES MEDICAL CENTRE,24456738,860.50 
Department of Health,NHS Sheffield CCG,31/10/2018,C&M-GMS Global Sum,PRC DELEGATED CO-COMMISSIONING,HOLLIES MEDICAL CENTRE,24456738,"62,410.57 "
Department of Health,NHS Sheffield CCG,31/10/2018,C&M-GMS MPIG Correction Factor,PRC DELEGATED CO-COMMISSIONING,HOLLIES MEDICAL CENTRE,24456738,"1,452.73 "
Department of Health,NHS Sheffield CCG,31/10/2018,C&M-GMS PCO Other,PRC DELEGATED CO-COMMISSIONING,HOLLIES MEDICAL CENTRE,24456738,623.72 
Department of Health,NHS Sheffield CCG,31/10/2018,C&M-GMS Prem Notional Rent,PRC DELEGATED CO-COMMISSIONING,HOLLIES MEDICAL CENTRE,24456738,"3,229.17 "
Department of Health,NHS Sheffield CCG,31/10/2018,C&M-GMS Prem Rates,PRC DELEGATED CO-COMMISSIONING,HOLLIES MEDICAL CENTRE,24456738,"1,224.00 "
Department of Health,NHS Sheffield CCG,31/10/2018,C&M-GMS Prem Water Rates,PRC DELEGATED CO-COMMISSIONING,HOLLIES MEDICAL CENTRE,24456738,345.33 
Department of Health,NHS Sheffield CCG,31/10/2018,C&M-GMS Prof Fees Prescribing,PRC DELEGATED CO-COMMISSIONING,HOLLIES MEDICAL CENTRE,24456738,103.50 
Department of Health,NHS Sheffield CCG,31/10/2018,C&M-GMS QOF Aspiration,PRC DELEGATED CO-COMMISSIONING,HOLLIES MEDICAL CENTRE,24456738,"6,440.45 "
Department of Health,NHS Sheffield CCG,31/10/2018,Cont Care-Physical Disab (65+),CHC ADULT FULLY FUNDED,HORIZON CARE HOMES LTD,24152595,"53,142.85 "
Department of Health,NHS Sheffield CCG,31/10/2018,Cont Care-Physical Disab (<65),CHC ADULT FULLY FUNDED,HORIZON CARE HOMES LTD,24204131,"30,503.38 "
Department of Health,NHS Sheffield CCG,31/10/2018,Cont Care-Physical Disab (<65),CHC ADULT FULLY FUNDED,HORIZON CARE HOMES LTD,24204134,"25,344.94 "
Department of Health,NHS Sheffield CCG,31/10/2018,Cont Care-Physical Disab (<65),CHC ADULT FULLY FUNDED,HORIZON CARE HOMES LTD,24204149,"28,306.87 "
Department of Health,NHS Sheffield CCG,31/10/2018,C&M-PMS Contract Value,PRC DELEGATED CO-COMMISSIONING,JAUNTY SPRINGS HEALTH CENTRE,24216144,"31,784.92 "
Department of Health,NHS Sheffield CCG,31/10/2018,C&M-PMS PCO Other,PRC DELEGATED CO-COMMISSIONING,JAUNTY SPRINGS HEALTH CENTRE,24216144,284.89 
Department of Health,NHS Sheffield CCG,31/10/2018,C&M-PMS Prem Notional Rent,PRC DELEGATED CO-COMMISSIONING,JAUNTY SPRINGS HEALTH CENTRE,24216144,"3,208.33 "
Department of Health,NHS Sheffield CCG,31/10/2018,C&M-PMS Prem Rates,PRC DELEGATED CO-COMMISSIONING,JAUNTY SPRINGS HEALTH CENTRE,24216144,631.00 
Department of Health,NHS Sheffield CCG,31/10/2018,C&M-PMS Prem Water Rates,PRC DELEGATED CO-COMMISSIONING,JAUNTY SPRINGS HEALTH CENTRE,24216144,40.61 
Department of Health,NHS Sheffield CCG,31/10/2018,C&M-PMS QOF Aspiration,PRC DELEGATED CO-COMMISSIONING,JAUNTY SPRINGS HEALTH CENTRE,24216144,"3,861.25 "
Department of Health,NHS Sheffield CCG,31/10/2018,C&M-GMS IT Comm Servs -GP Practices,PRIMARY CARE IT,KIER BUSINESS SERVICES LTD,24204210,"103,393.20 "
Department of Health,NHS Sheffield CCG,31/10/2018,FM Computer Contracts,BUSINESS INFORMATICS,KIER BUSINESS SERVICES LTD,24204210,"36,933.60 "
Department of Health,NHS Sheffield CCG,31/10/2018,C&M-GMS LES Translation Fees,INTERPRETING SERVICES,LANGUAGELINE SOLUTIONS,24260637,"29,025.00 "
Department of Health,NHS Sheffield CCG,31/10/2018,C&M-GMS LES Translation Fees,INTERPRETING SERVICES,LANGUAGELINE SOLUTIONS,24260648,"36,681.36 "
Department of Health,NHS Sheffield CCG,31/10/2018,Hcare Srv Rec NHS Trust-Contract Baseline,ACUTE COMMISSIONING,LEEDS TEACHING HOSPITALS NHS TRUST,24201912,"44,759.00 "
Department of Health,NHS Sheffield CCG,31/10/2018,Cont Care-Physical Disab (<65),CHC ADULT FULLY FUNDED,LONGLEY HEALTH CARE LTD,24152665,"118,279.24 "
Department of Health,NHS Sheffield CCG,31/10/2018,Cont Care-Physical Disab (<65),CHC ADULT FULLY FUNDED,LOXLEY HEALTH CARE LTD,24152669,"52,759.83 "
Department of Health,NHS Sheffield CCG,31/10/2018,C&M-PMS Contract Value,PRC DELEGATED CO-COMMISSIONING,MANCHESTER ROAD SURGERY SHEFFIELD,24216148,"34,387.48 "
Department of Health,NHS Sheffield CCG,31/10/2018,C&M-PMS Prem Cost Rent,PRC DELEGATED CO-COMMISSIONING,MANCHESTER ROAD SURGERY SHEFFIELD,24216148,"3,472.17 "
Department of Health,NHS Sheffield CCG,31/10/2018,C&M-PMS Prem Notional Rent,PRC DELEGATED CO-COMMISSIONING,MANCHESTER ROAD SURGERY SHEFFIELD,24216148,442.92 
Department of Health,NHS Sheffield CCG,31/10/2018,C&M-PMS Prem Rates,PRC DELEGATED CO-COMMISSIONING,MANCHESTER ROAD SURGERY SHEFFIELD,24216148,948.00 
Department of Health,NHS Sheffield CCG,31/10/2018,C&M-PMS QOF Aspiration,PRC DELEGATED CO-COMMISSIONING,MANCHESTER ROAD SURGERY SHEFFIELD,24216148,"4,036.85 "
Department of Health,NHS Sheffield CCG,31/10/2018,C&M-PMS Contract Value,PRC DELEGATED CO-COMMISSIONING,MANOR & PARK GROUP PRACTICE,24215560,"82,103.37 "
Department of Health,NHS Sheffield CCG,31/10/2018,C&M-PMS Cost of Drugs -Prescribing,LOCAL ENHANCED SERVICES,MANOR & PARK GROUP PRACTICE,24215560,"1,575.27 "
Department of Health,NHS Sheffield CCG,31/10/2018,C&M-PMS DES Extended Hours Access,PRC DELEGATED CO-COMMISSIONING,MANOR & PARK GROUP PRACTICE,24215560,"2,423.93 "
Department of Health,NHS Sheffield CCG,31/10/2018,C&M-PMS Out of Hours Opt Outs,PRC DELEGATED CO-COMMISSIONING,MANOR & PARK GROUP PRACTICE,24215560,9.59 
Department of Health,NHS Sheffield CCG,31/10/2018,C&M-PMS Prem Notional Rent,PRC DELEGATED CO-COMMISSIONING,MANOR & PARK GROUP PRACTICE,24215560,"9,050.00 "
Department of Health,NHS Sheffield CCG,31/10/2018,C&M-PMS Prem Rates,PRC DELEGATED CO-COMMISSIONING,MANOR & PARK GROUP PRACTICE,24215560,975.00 
Department of Health,NHS Sheffield CCG,31/10/2018,C&M-PMS Prof fees Prescribing,PRC DELEGATED CO-COMMISSIONING,MANOR & PARK GROUP PRACTICE,24215560,213.90 
Department of Health,NHS Sheffield CCG,31/10/2018,C&M-PMS QOF Aspiration,PRC DELEGATED CO-COMMISSIONING,MANOR & PARK GROUP PRACTICE,24215560,"7,862.89 "
Department of Health,NHS Sheffield CCG,31/10/2018,C&M-GMS Cost of Drugs -Prescribing,LOCAL ENHANCED SERVICES,MATHEWS PRACTICE,24456748,159.00 
Department of Health,NHS Sheffield CCG,31/10/2018,C&M-GMS Global Sum,PRC DELEGATED CO-COMMISSIONING,MATHEWS PRACTICE,24456748,"67,388.75 "
Department of Health,NHS Sheffield CCG,31/10/2018,C&M-GMS MPIG Correction Factor,PRC DELEGATED CO-COMMISSIONING,MATHEWS PRACTICE,24456748,598.96 
Department of Health,NHS Sheffield CCG,31/10/2018,C&M-GMS Prem Notional Rent,PRC DELEGATED CO-COMMISSIONING,MATHEWS PRACTICE,24456748,"8,660.42 "
Department of Health,NHS Sheffield CCG,31/10/2018,C&M-GMS Prem Rates,PRC DELEGATED CO-COMMISSIONING,MATHEWS PRACTICE,24456748,"1,962.00 "
Department of Health,NHS Sheffield CCG,31/10/2018,C&M-GMS Prof Fees Prescribing,PRC DELEGATED CO-COMMISSIONING,MATHEWS PRACTICE,24456748,80.50 
Department of Health,NHS Sheffield CCG,31/10/2018,C&M-GMS QOF Aspiration,PRC DELEGATED CO-COMMISSIONING,MATHEWS PRACTICE,24456748,"7,748.47 "
Department of Health,NHS Sheffield CCG,31/10/2018,C&M-PMS Contract Value,PRC DELEGATED CO-COMMISSIONING,MEADOWHEAD GROUP PRACTICE,24216146,"82,546.09 "
Department of Health,NHS Sheffield CCG,31/10/2018,C&M-PMS Out of Hours Opt Outs,PRC DELEGATED CO-COMMISSIONING,MEADOWHEAD GROUP PRACTICE,24216146,103.86 
Department of Health,NHS Sheffield CCG,31/10/2018,C&M-PMS Prem Cost Rent,PRC DELEGATED CO-COMMISSIONING,MEADOWHEAD GROUP PRACTICE,24216146,"3,647.42 "
Department of Health,NHS Sheffield CCG,31/10/2018,C&M-PMS Prem Notional Rent,PRC DELEGATED CO-COMMISSIONING,MEADOWHEAD GROUP PRACTICE,24216146,"3,358.33 "
Department of Health,NHS Sheffield CCG,31/10/2018,C&M-PMS Prem Rates,PRC DELEGATED CO-COMMISSIONING,MEADOWHEAD GROUP PRACTICE,24216146,"1,788.00 "
Department of Health,NHS Sheffield CCG,31/10/2018,C&M-PMS QOF Aspiration,PRC DELEGATED CO-COMMISSIONING,MEADOWHEAD GROUP PRACTICE,24216146,"9,134.83 "
Department of Health,NHS Sheffield CCG,31/10/2018,C&M-GMS Cost of Drugs -Prescribing,LOCAL ENHANCED SERVICES,MEDICAL CENTRE CRYSTAL PEAKS,24456744,453.83 
Department of Health,NHS Sheffield CCG,31/10/2018,C&M-GMS Global Sum,PRC DELEGATED CO-COMMISSIONING,MEDICAL CENTRE CRYSTAL PEAKS,24456744,"49,118.15 "
Department of Health,NHS Sheffield CCG,31/10/2018,C&M-GMS MPIG Correction Factor,PRC DELEGATED CO-COMMISSIONING,MEDICAL CENTRE CRYSTAL PEAKS,24456744,"1,131.34 "
Department of Health,NHS Sheffield CCG,31/10/2018,C&M-GMS PCO Other,PRC DELEGATED CO-COMMISSIONING,MEDICAL CENTRE CRYSTAL PEAKS,24456744,474.67 
Department of Health,NHS Sheffield CCG,31/10/2018,C&M-GMS Prem Actual Rent,PRC DELEGATED CO-COMMISSIONING,MEDICAL CENTRE CRYSTAL PEAKS,24456744,"17,610.00 "
Department of Health,NHS Sheffield CCG,31/10/2018,C&M-GMS Prem Notional Rent,PRC DELEGATED CO-COMMISSIONING,MEDICAL CENTRE CRYSTAL PEAKS,24456744,270.00 
Department of Health,NHS Sheffield CCG,31/10/2018,C&M-GMS Prem Rates,PRC DELEGATED CO-COMMISSIONING,MEDICAL CENTRE CRYSTAL PEAKS,24456744,977.00 
Department of Health,NHS Sheffield CCG,31/10/2018,C&M-GMS Prof Fees Prescribing,PRC DELEGATED CO-COMMISSIONING,MEDICAL CENTRE CRYSTAL PEAKS,24456744,230.00 
Department of Health,NHS Sheffield CCG,31/10/2018,C&M-GMS QOF Aspiration,PRC DELEGATED CO-COMMISSIONING,MEDICAL CENTRE CRYSTAL PEAKS,24456744,"6,363.66 "
Department of Health,NHS Sheffield CCG,31/10/2018,C&M-GMS Cost of Drugs -Prescribing,LOCAL ENHANCED SERVICES,MILL ROAD SURGERY SHEFFIELD,24456751,986.24 
Department of Health,NHS Sheffield CCG,31/10/2018,C&M-GMS Global Sum,PRC DELEGATED CO-COMMISSIONING,MILL ROAD SURGERY SHEFFIELD,24456751,"43,585.03 "
Department of Health,NHS Sheffield CCG,31/10/2018,C&M-GMS MPIG Correction Factor,PRC DELEGATED CO-COMMISSIONING,MILL ROAD SURGERY SHEFFIELD,24456751,122.04 
Department of Health,NHS Sheffield CCG,31/10/2018,C&M-GMS PCO Other,PRC DELEGATED CO-COMMISSIONING,MILL ROAD SURGERY SHEFFIELD,24456751,389.44 
Department of Health,NHS Sheffield CCG,31/10/2018,C&M-GMS Prem Notional Rent,PRC DELEGATED CO-COMMISSIONING,MILL ROAD SURGERY SHEFFIELD,24456751,"4,593.33 "
Department of Health,NHS Sheffield CCG,31/10/2018,C&M-GMS Prem Rates,PRC DELEGATED CO-COMMISSIONING,MILL ROAD SURGERY SHEFFIELD,24456751,972.00 
Department of Health,NHS Sheffield CCG,31/10/2018,C&M-GMS Prof Fees Prescribing,PRC DELEGATED CO-COMMISSIONING,MILL ROAD SURGERY SHEFFIELD,24456751,128.80 
Department of Health,NHS Sheffield CCG,31/10/2018,C&M-GMS QOF Aspiration,PRC DELEGATED CO-COMMISSIONING,MILL ROAD SURGERY SHEFFIELD,24456751,"4,960.33 "
Department of Health,NHS Sheffield CCG,31/10/2018,Clinical&Medical-Independent Sector,Mental Health Services - S117 Mental Health,MOORVILLE RESIDENTIAL,24378173,"7,862.24 "
Department of Health,NHS Sheffield CCG,31/10/2018,Cont Care-Learning Disab(<65),CHC ADULT FULLY FUNDED,MOORVILLE RESIDENTIAL,24378173,"20,533.32 "
Department of Health,NHS Sheffield CCG,31/10/2018,Cont Care-Mental Health (<65),CHC ADULT JOINT FUNDED,MOORVILLE RESIDENTIAL,24378173,475.71 
Department of Health,NHS Sheffield CCG,31/10/2018,C&M-PMS Contract Value,PRC DELEGATED CO-COMMISSIONING,MOSBOROUGH HEALTH CENTRE,24216150,"51,198.26 "
Department of Health,NHS Sheffield CCG,31/10/2018,C&M-PMS PCO Other,PRC DELEGATED CO-COMMISSIONING,MOSBOROUGH HEALTH CENTRE,24216150,471.11 
Department of Health,NHS Sheffield CCG,31/10/2018,C&M-PMS Prem Notional Rent,PRC DELEGATED CO-COMMISSIONING,MOSBOROUGH HEALTH CENTRE,24216150,"4,091.67 "
Department of Health,NHS Sheffield CCG,31/10/2018,C&M-PMS Prem Rates,PRC DELEGATED CO-COMMISSIONING,MOSBOROUGH HEALTH CENTRE,24216150,891.00 
Department of Health,NHS Sheffield CCG,31/10/2018,C&M-PMS Prem Water Rates,PRC DELEGATED CO-COMMISSIONING,MOSBOROUGH HEALTH CENTRE,24216150,59.46 
Department of Health,NHS Sheffield CCG,31/10/2018,C&M-PMS QOF Aspiration,PRC DELEGATED CO-COMMISSIONING,MOSBOROUGH HEALTH CENTRE,24216150,"5,763.82 "
Department of Health,NHS Sheffield CCG,31/10/2018,C&M-PMS Contract Value,PRC DELEGATED CO-COMMISSIONING,NETHERGREEN SURGERY,24216152,"66,864.84 "
Department of Health,NHS Sheffield CCG,31/10/2018,C&M-PMS DES Learn Dsblty Hlth Chk,PRC DELEGATED CO-COMMISSIONING,NETHERGREEN SURGERY,24216152,700.00 
Department of Health,NHS Sheffield CCG,31/10/2018,C&M-PMS Prem Cost Rent,PRC DELEGATED CO-COMMISSIONING,NETHERGREEN SURGERY,24216152,"5,057.33 "
Department of Health,NHS Sheffield CCG,31/10/2018,C&M-PMS Prem Rates,PRC DELEGATED CO-COMMISSIONING,NETHERGREEN SURGERY,24216152,"1,236.00 "
Department of Health,NHS Sheffield CCG,31/10/2018,C&M-PMS Prem Water Rates,PRC DELEGATED CO-COMMISSIONING,NETHERGREEN SURGERY,24216152,270.31 
Department of Health,NHS Sheffield CCG,31/10/2018,C&M-PMS QOF Aspiration,PRC DELEGATED CO-COMMISSIONING,NETHERGREEN SURGERY,24216152,"6,267.38 "
Department of Health,NHS Sheffield CCG,31/10/2018,External Consultancy Fees,SHEFFIELD SYSTEM PROJECT 02,NEWTON EUROPE LTD,24203593,"27,421.54 "
Department of Health,NHS Sheffield CCG,31/10/2018,Seconded-Basic Sal-Staff fm oth org,COLLABORATIVE COMMISSIONING,NHS BARNSLEY CCG,24435848,"53,124.59 "
Department of Health,NHS Sheffield CCG,31/10/2018,Seconded-Employer's NHI Costs,COLLABORATIVE COMMISSIONING,NHS BARNSLEY CCG,24435848,"7,278.92 "
Department of Health,NHS Sheffield CCG,31/10/2018,Other Gen Supplies & Srv,BEREAVEMENT SERVICE,NHS DONCASTER CCG,24500692,"84,762.00 "
Department of Health,NHS Sheffield CCG,31/10/2018,Seconded-Basic Sal-Staff fm oth org,CLINICAL LEADS,NHS ENGLAND,24353299,"35,103.00 "
Department of Health,NHS Sheffield CCG,31/10/2018,Seconded-Employer's NHI Costs,CLINICAL LEADS,NHS ENGLAND,24353299,"4,272.03 "
Department of Health,NHS Sheffield CCG,31/10/2018,Charges from CSU,BUSINESS INFORMATICS,NHS NORTH OF ENGLAND CSU,24301041,"30,083.00 "
Department of Health,NHS Sheffield CCG,31/10/2018,Voids and Subsidies,RECHARGES NHS PROPERTY SERVICES LTD,NHS PROPERTY SERVICES LTD,24260629,"34,305.86 "
Department of Health,NHS Sheffield CCG,31/10/2018,Rent,CONTINUING HEALTHCARE ASSESSMENT & SUPPORT,NHS PROPERTY SERVICES LTD,24435707,"53,121.25 "
Department of Health,NHS Sheffield CCG,31/10/2018,Rent,ESTATES AND FACILITIES,NHS PROPERTY SERVICES LTD,24435707,"119,800.70 "
Department of Health,NHS Sheffield CCG,31/10/2018,Rent,CONTINUING HEALTHCARE ASSESSMENT & SUPPORT,NHS PROPERTY SERVICES LTD,24435757,"29,204.91 "
Department of Health,NHS Sheffield CCG,31/10/2018,Rent,ESTATES AND FACILITIES,NHS PROPERTY SERVICES LTD,24435757,"77,381.69 "
Department of Health,NHS Sheffield CCG,31/10/2018,Rent,CONTINUING HEALTHCARE ASSESSMENT & SUPPORT,NHS PROPERTY SERVICES LTD,24435758,"20,417.91 "
Department of Health,NHS Sheffield CCG,31/10/2018,Rent,ESTATES AND FACILITIES,NHS PROPERTY SERVICES LTD,24435758,"54,099.55 "
Department of Health,NHS Sheffield CCG,31/10/2018,Rent,ESTATES AND FACILITIES,NHS PROPERTY SERVICES LTD,24435761,"(40,342.46)"
Department of Health,NHS Sheffield CCG,31/10/2018,C&M-GMS Cost of Drugs -Prescribing,LOCAL ENHANCED SERVICES,NORFOLK PARK HEALTH CENTRE,24456756,729.02 
Department of Health,NHS Sheffield CCG,31/10/2018,C&M-GMS Global Sum,PRC DELEGATED CO-COMMISSIONING,NORFOLK PARK HEALTH CENTRE,24456756,"40,196.39 "
Department of Health,NHS Sheffield CCG,31/10/2018,C&M-GMS MPIG Correction Factor,PRC DELEGATED CO-COMMISSIONING,NORFOLK PARK HEALTH CENTRE,24456756,924.61 
Department of Health,NHS Sheffield CCG,31/10/2018,C&M-GMS Prem Healthcentre Rent,PRC DELEGATED CO-COMMISSIONING,NORFOLK PARK HEALTH CENTRE,24456756,"24,044.86 "
Department of Health,NHS Sheffield CCG,31/10/2018,C&M-GMS Prof Fees Prescribing,PRC DELEGATED CO-COMMISSIONING,NORFOLK PARK HEALTH CENTRE,24456756,124.20 
Department of Health,NHS Sheffield CCG,31/10/2018,C&M-GMS QOF Aspiration,PRC DELEGATED CO-COMMISSIONING,NORFOLK PARK HEALTH CENTRE,24456756,"3,810.65 "
Department of Health,NHS Sheffield CCG,31/10/2018,C&M-GMS Cost of Drugs -Prescribing,LOCAL ENHANCED SERVICES,NORWOOD MEDICAL CENTRE SHEFFIELD,24456759,275.05 
Department of Health,NHS Sheffield CCG,31/10/2018,C&M-GMS Global Sum,PRC DELEGATED CO-COMMISSIONING,NORWOOD MEDICAL CENTRE SHEFFIELD,24456759,"69,250.37 "
Department of Health,NHS Sheffield CCG,31/10/2018,C&M-GMS PCO Other,PRC DELEGATED CO-COMMISSIONING,NORWOOD MEDICAL CENTRE SHEFFIELD,24456759,559.17 
Department of Health,NHS Sheffield CCG,31/10/2018,C&M-GMS Prem Notional Rent,PRC DELEGATED CO-COMMISSIONING,NORWOOD MEDICAL CENTRE SHEFFIELD,24456759,"5,187.50 "
Department of Health,NHS Sheffield CCG,31/10/2018,C&M-GMS Prof Fees Prescribing,PRC DELEGATED CO-COMMISSIONING,NORWOOD MEDICAL CENTRE SHEFFIELD,24456759,69.00 
Department of Health,NHS Sheffield CCG,31/10/2018,C&M-GMS QOF Aspiration,PRC DELEGATED CO-COMMISSIONING,NORWOOD MEDICAL CENTRE SHEFFIELD,24456759,"8,350.37 "
Department of Health,NHS Sheffield CCG,31/10/2018,Hcare Srv Rec NHS Trust-Contract Baseline,ACUTE COMMISSIONING,NOTTINGHAM UNIVERSITY HOSPITALS NHS TRUST,24246918,"28,040.00 "
Department of Health,NHS Sheffield CCG,31/10/2018,Clinical&Medical-Independent Sector,ACUTE COMMISSIONING,ONEHEALTH GROUP,24088615,"74,162.00 "
Department of Health,NHS Sheffield CCG,31/10/2018,Clinical&Medical-Independent Sector,ACUTE COMMISSIONING,ONEHEALTH GROUP,24260806,"74,162.00 "
Department of Health,NHS Sheffield CCG,31/10/2018,C&M-GMS Cost of Drugs -Dispensing,LOCAL ENHANCED SERVICES,OUGHTIBRIDGE SURGERY,24456762,"(15,417.06)"
Department of Health,NHS Sheffield CCG,31/10/2018,C&M-GMS GP Statutory Levy,PRC DELEGATED CO-COMMISSIONING,OUGHTIBRIDGE SURGERY,24456762,(175.02)
Department of Health,NHS Sheffield CCG,31/10/2018,C&M-GMS PrscChrgsCll&RmttdbyGPCntra,PRC DELEGATED CO-COMMISSIONING,OUGHTIBRIDGE SURGERY,24456762,(492.80)
Department of Health,NHS Sheffield CCG,31/10/2018,C&M-GMS Voluntary Levy,PRC DELEGATED CO-COMMISSIONING,OUGHTIBRIDGE SURGERY,24456762,(29.17)
Department of Health,NHS Sheffield CCG,31/10/2018,C&M-GMS Cost of Drugs -Dispensing,LOCAL ENHANCED SERVICES,OUGHTIBRIDGE SURGERY,24456763,"31,012.53 "
Department of Health,NHS Sheffield CCG,31/10/2018,C&M-GMS Global Sum,PRC DELEGATED CO-COMMISSIONING,OUGHTIBRIDGE SURGERY,24456763,"46,042.32 "
Department of Health,NHS Sheffield CCG,31/10/2018,C&M-GMS Prem Notional Rent,PRC DELEGATED CO-COMMISSIONING,OUGHTIBRIDGE SURGERY,24456763,"3,957.33 "
Department of Health,NHS Sheffield CCG,31/10/2018,C&M-GMS Prem Rates,PRC DELEGATED CO-COMMISSIONING,OUGHTIBRIDGE SURGERY,24456763,976.00 
Department of Health,NHS Sheffield CCG,31/10/2018,C&M-GMS Prem Water Rates,PRC DELEGATED CO-COMMISSIONING,OUGHTIBRIDGE SURGERY,24456763,184.48 
Department of Health,NHS Sheffield CCG,31/10/2018,C&M-GMS Prof Fees Dispensing,PRC DELEGATED CO-COMMISSIONING,OUGHTIBRIDGE SURGERY,24456763,"4,700.55 "
Department of Health,NHS Sheffield CCG,31/10/2018,C&M-GMS PrscrptnChrgsColl&RmttdbyGP,LOCAL ENHANCED SERVICES,OUGHTIBRIDGE SURGERY,24456763,492.80 
Department of Health,NHS Sheffield CCG,31/10/2018,C&M-GMS QOF Aspiration,PRC DELEGATED CO-COMMISSIONING,OUGHTIBRIDGE SURGERY,24456763,"4,454.94 "
Department of Health,NHS Sheffield CCG,31/10/2018,C&M-PMS Contract Value,PRC DELEGATED CO-COMMISSIONING,OWLTHORPE MEDICAL CENTRE,24216154,"35,853.79 "
Department of Health,NHS Sheffield CCG,31/10/2018,C&M-PMS Out of Hours Opt Outs,PRC DELEGATED CO-COMMISSIONING,OWLTHORPE MEDICAL CENTRE,24216154,4.14 
Department of Health,NHS Sheffield CCG,31/10/2018,C&M-PMS Prem Actual Rent,PRC DELEGATED CO-COMMISSIONING,OWLTHORPE MEDICAL CENTRE,24216154,"7,539.58 "
Department of Health,NHS Sheffield CCG,31/10/2018,C&M-PMS Prem Water Rates,PRC DELEGATED CO-COMMISSIONING,OWLTHORPE MEDICAL CENTRE,24216154,106.95 
Department of Health,NHS Sheffield CCG,31/10/2018,C&M-PMS QOF Aspiration,PRC DELEGATED CO-COMMISSIONING,OWLTHORPE MEDICAL CENTRE,24216154,"4,022.05 "
Department of Health,NHS Sheffield CCG,31/10/2018,C&M-PMS Contract Value,PRC DELEGATED CO-COMMISSIONING,PAGE HALL MEDICAL CENTRE,24216156,"60,667.01 "
Department of Health,NHS Sheffield CCG,31/10/2018,C&M-PMS DES Learn Dsblty Hlth Chk,PRC DELEGATED CO-COMMISSIONING,PAGE HALL MEDICAL CENTRE,24216156,980.00 
Department of Health,NHS Sheffield CCG,31/10/2018,C&M-PMS PCO Other,PRC DELEGATED CO-COMMISSIONING,PAGE HALL MEDICAL CENTRE,24216156,"3,213.50 "
Department of Health,NHS Sheffield CCG,31/10/2018,C&M-PMS Prem Notional Rent,PRC DELEGATED CO-COMMISSIONING,PAGE HALL MEDICAL CENTRE,24216156,"4,833.33 "
Department of Health,NHS Sheffield CCG,31/10/2018,C&M-PMS Prem Rates,PRC DELEGATED CO-COMMISSIONING,PAGE HALL MEDICAL CENTRE,24216156,"1,076.33 "
Department of Health,NHS Sheffield CCG,31/10/2018,C&M-PMS QOF Aspiration,PRC DELEGATED CO-COMMISSIONING,PAGE HALL MEDICAL CENTRE,24216156,"4,906.36 "
Department of Health,NHS Sheffield CCG,31/10/2018,C&M-PMS Contract Value,PRC DELEGATED CO-COMMISSIONING,PITSMOOR SURGERY,24216158,"82,269.44 "
Department of Health,NHS Sheffield CCG,31/10/2018,C&M-PMS Out of Hours Opt Outs,PRC DELEGATED CO-COMMISSIONING,PITSMOOR SURGERY,24216158,17.51 
Department of Health,NHS Sheffield CCG,31/10/2018,C&M-PMS Prem Notional Rent,PRC DELEGATED CO-COMMISSIONING,PITSMOOR SURGERY,24216158,"9,650.00 "
Department of Health,NHS Sheffield CCG,31/10/2018,C&M-PMS Prem Rates,PRC DELEGATED CO-COMMISSIONING,PITSMOOR SURGERY,24216158,"2,154.00 "
Department of Health,NHS Sheffield CCG,31/10/2018,C&M-PMS QOF Aspiration,PRC DELEGATED CO-COMMISSIONING,PITSMOOR SURGERY,24216158,"7,079.26 "
Department of Health,NHS Sheffield CCG,31/10/2018,C&M-GMS LES Equitable Funding,LOCAL ENHANCED SERVICES,PORTER BROOK MEDICAL CENTRE,24191223,"26,331.00 "
Department of Health,NHS Sheffield CCG,31/10/2018,C&M-PMS Contract Value,PRC DELEGATED CO-COMMISSIONING,PORTER BROOK MEDICAL CENTRE,24216159,"175,149.74 "
Department of Health,NHS Sheffield CCG,31/10/2018,C&M-PMS Out of Hours Opt Outs,PRC DELEGATED CO-COMMISSIONING,PORTER BROOK MEDICAL CENTRE,24216159,429.11 
Department of Health,NHS Sheffield CCG,31/10/2018,C&M-PMS PCO Other,PRC DELEGATED CO-COMMISSIONING,PORTER BROOK MEDICAL CENTRE,24216159,"1,902.44 "
Department of Health,NHS Sheffield CCG,31/10/2018,C&M-PMS Prem Actual Rent,PRC DELEGATED CO-COMMISSIONING,PORTER BROOK MEDICAL CENTRE,24216159,"1,333.33 "
Department of Health,NHS Sheffield CCG,31/10/2018,C&M-PMS Prem Notional Rent,PRC DELEGATED CO-COMMISSIONING,PORTER BROOK MEDICAL CENTRE,24216159,"9,666.67 "
Department of Health,NHS Sheffield CCG,31/10/2018,C&M-PMS Prem Rates,PRC DELEGATED CO-COMMISSIONING,PORTER BROOK MEDICAL CENTRE,24216159,"2,315.00 "
Department of Health,NHS Sheffield CCG,31/10/2018,C&M-PMS Prem Water Rates,PRC DELEGATED CO-COMMISSIONING,PORTER BROOK MEDICAL CENTRE,24216159,338.32 
Department of Health,NHS Sheffield CCG,31/10/2018,C&M-PMS QOF Aspiration,PRC DELEGATED CO-COMMISSIONING,PORTER BROOK MEDICAL CENTRE,24216159,"8,562.06 "
Department of Health,NHS Sheffield CCG,31/10/2018,C&M-PMS Contract Value,PRC DELEGATED CO-COMMISSIONING,PORTER BROOK MEDICAL CENTRE,24238050,"(8,731.26)"
Department of Health,NHS Sheffield CCG,31/10/2018,C&M-PMS GP Statutory Levy,PRC DELEGATED CO-COMMISSIONING,PORTER BROOK MEDICAL CENTRE,24238050,"(1,037.75)"
Department of Health,NHS Sheffield CCG,31/10/2018,C&M-PMS Out of Hours Opt Outs,PRC DELEGATED CO-COMMISSIONING,PORTER BROOK MEDICAL CENTRE,24238050,"(8,223.44)"
Department of Health,NHS Sheffield CCG,31/10/2018,Clinical&Medical-Commercial Sector,PATIENT TRANSPORT,PREMIER CARE DIRECT LTD,24152541,"112,480.54 "
Department of Health,NHS Sheffield CCG,31/10/2018,Clinical&Medical-Commercial Sector,PATIENT TRANSPORT,PREMIER CARE DIRECT LTD,24534047,"112,480.54 "
Department of Health,NHS Sheffield CCG,31/10/2018,C&M-APMS DES Extended Hours Access,GP FORWARD VIEW,PRIMARY CARE SHEFFIELD LTD,24152615,"291,333.34 "
Department of Health,NHS Sheffield CCG,31/10/2018,C&M-PMS Contract Value,PRC DELEGATED CO-COMMISSIONING,RICHMOND MEDICAL CENTRE,24216161,"70,080.59 "
Department of Health,NHS Sheffield CCG,31/10/2018,C&M-PMS PCO Other,PRC DELEGATED CO-COMMISSIONING,RICHMOND MEDICAL CENTRE,24216161,617.78 
Department of Health,NHS Sheffield CCG,31/10/2018,C&M-PMS Prem Notional Rent,PRC DELEGATED CO-COMMISSIONING,RICHMOND MEDICAL CENTRE,24216161,"4,731.00 "
Department of Health,NHS Sheffield CCG,31/10/2018,C&M-PMS Prem Rates,PRC DELEGATED CO-COMMISSIONING,RICHMOND MEDICAL CENTRE,24216161,"1,425.00 "
Department of Health,NHS Sheffield CCG,31/10/2018,C&M-PMS QOF Aspiration,PRC DELEGATED CO-COMMISSIONING,RICHMOND MEDICAL CENTRE,24216161,"8,188.48 "
Department of Health,NHS Sheffield CCG,31/10/2018,Cont Care-Physical Disab (<65),CHC ADULT FULLY FUNDED,ROSEBERRY CARE CENTRES,24152657,"72,810.62 "
Department of Health,NHS Sheffield CCG,31/10/2018,Cont Care-Physical Disab (<65),CHC ADULT FULLY FUNDED,ROSEBERRY CARE CENTRES,24152674,"45,063.05 "
Department of Health,NHS Sheffield CCG,31/10/2018,Cont Care-Funded Nursing Care Allow,FUNDED NURSING CARE,ROSEBERRY CARE CENTRES,24204153,"32,045.28 "
Department of Health,NHS Sheffield CCG,31/10/2018,Hcare Srv Rec Fdtn Trust-Contract Baseline,ACUTE COMMISSIONING,ROTHERHAM NHS FOUNDATION TRUST,24152471,"428,814.00 "
Department of Health,NHS Sheffield CCG,31/10/2018,Other Gen Supplies & Srv,BEREAVEMENT SERVICE,ROTHERHAM NHS FOUNDATION TRUST,24533989,"105,000.00 "
Department of Health,NHS Sheffield CCG,31/10/2018,C&M-PMS Contract Value,PRC DELEGATED CO-COMMISSIONING,RUSTLINGS ROAD MEDICAL CENTRE,24216165,"29,330.82 "
Department of Health,NHS Sheffield CCG,31/10/2018,C&M-PMS PCO Other,PRC DELEGATED CO-COMMISSIONING,RUSTLINGS ROAD MEDICAL CENTRE,24216165,347.11 
Department of Health,NHS Sheffield CCG,31/10/2018,C&M-PMS Prem Notional Rent,PRC DELEGATED CO-COMMISSIONING,RUSTLINGS ROAD MEDICAL CENTRE,24216165,"1,167.92 "
Department of Health,NHS Sheffield CCG,31/10/2018,C&M-PMS Prem Water Rates,PRC DELEGATED CO-COMMISSIONING,RUSTLINGS ROAD MEDICAL CENTRE,24216165,92.51 
Department of Health,NHS Sheffield CCG,31/10/2018,C&M-PMS QOF Aspiration,PRC DELEGATED CO-COMMISSIONING,RUSTLINGS ROAD MEDICAL CENTRE,24216165,"2,389.45 "
Department of Health,NHS Sheffield CCG,31/10/2018,C&M-PMS Contract Value,PRC DELEGATED CO-COMMISSIONING,SELBORNE ROAD MEDICAL CENTRE,24216163,"20,900.00 "
Department of Health,NHS Sheffield CCG,31/10/2018,C&M-PMS Out of Hours Opt Outs,PRC DELEGATED CO-COMMISSIONING,SELBORNE ROAD MEDICAL CENTRE,24216163,4.17 
Department of Health,NHS Sheffield CCG,31/10/2018,C&M-PMS PCO Other,PRC DELEGATED CO-COMMISSIONING,SELBORNE ROAD MEDICAL CENTRE,24216163,229.64 
Department of Health,NHS Sheffield CCG,31/10/2018,C&M-PMS Prem Notional Rent,PRC DELEGATED CO-COMMISSIONING,SELBORNE ROAD MEDICAL CENTRE,24216163,"1,735.42 "
Department of Health,NHS Sheffield CCG,31/10/2018,C&M-PMS Prem Rates,PRC DELEGATED CO-COMMISSIONING,SELBORNE ROAD MEDICAL CENTRE,24216163,588.00 
Department of Health,NHS Sheffield CCG,31/10/2018,C&M-PMS QOF Aspiration,PRC DELEGATED CO-COMMISSIONING,SELBORNE ROAD MEDICAL CENTRE,24216163,"2,043.75 "
Department of Health,NHS Sheffield CCG,31/10/2018,Cont Care-Physical Disab (<65),CHC ADULT FULLY FUNDED,SEVEN HILLS NURSING HOME,24204158,"31,325.82 "
Department of Health,NHS Sheffield CCG,31/10/2018,C&M-GMS Cost of Drugs -Prescribing,LOCAL ENHANCED SERVICES,SHARROW LANE MEDICAL CENTRE,24456768,475.52 
Department of Health,NHS Sheffield CCG,31/10/2018,C&M-GMS Global Sum,PRC DELEGATED CO-COMMISSIONING,SHARROW LANE MEDICAL CENTRE,24456768,"24,576.35 "
Department of Health,NHS Sheffield CCG,31/10/2018,C&M-GMS MPIG Correction Factor,PRC DELEGATED CO-COMMISSIONING,SHARROW LANE MEDICAL CENTRE,24456768,"1,960.32 "
Department of Health,NHS Sheffield CCG,31/10/2018,C&M-GMS PCO Other,PRC DELEGATED CO-COMMISSIONING,SHARROW LANE MEDICAL CENTRE,24456768,302.53 
Department of Health,NHS Sheffield CCG,31/10/2018,C&M-GMS Prem Notional Rent,PRC DELEGATED CO-COMMISSIONING,SHARROW LANE MEDICAL CENTRE,24456768,"2,741.66 "
Department of Health,NHS Sheffield CCG,31/10/2018,C&M-GMS Prem Rates,PRC DELEGATED CO-COMMISSIONING,SHARROW LANE MEDICAL CENTRE,24456768,517.00 
Department of Health,NHS Sheffield CCG,31/10/2018,C&M-GMS Prem Water Rates,PRC DELEGATED CO-COMMISSIONING,SHARROW LANE MEDICAL CENTRE,24456768,119.93 
Department of Health,NHS Sheffield CCG,31/10/2018,C&M-GMS Prof Fees Prescribing,PRC DELEGATED CO-COMMISSIONING,SHARROW LANE MEDICAL CENTRE,24456768,80.50 
Department of Health,NHS Sheffield CCG,31/10/2018,C&M-GMS QOF Aspiration,PRC DELEGATED CO-COMMISSIONING,SHARROW LANE MEDICAL CENTRE,24456768,"2,521.19 "
Department of Health,NHS Sheffield CCG,31/10/2018,Hcare Srv Rec Fdtn Trust-CQUIN,ACUTE CHILDRENS SERVICES,SHEFFIELD CHILDRENS NHS FOUNDATION TRUST,24203592,"33,781.00 "
Department of Health,NHS Sheffield CCG,31/10/2018,Hcare Srv Rec Fdtn Trust-CQUIN,COMMUNITY SERVICES,SHEFFIELD CHILDRENS NHS FOUNDATION TRUST,24203592,"3,984.00 "
Department of Health,NHS Sheffield CCG,31/10/2018,Hcare Srv Rec Fdtn Trust-Contract Baseline,ACUTE CHILDRENS SERVICES,SHEFFIELD CHILDRENS NHS FOUNDATION TRUST,24203592,"259,425.79 "
Department of Health,NHS Sheffield CCG,31/10/2018,Hcare Srv Rec Fdtn Trust-Contract Baseline,CHILD AND ADOLESCENT MENTAL HEALTH,SHEFFIELD CHILDRENS NHS FOUNDATION TRUST,24203592,"429,451.00 "
Department of Health,NHS Sheffield CCG,31/10/2018,Hcare Srv Rec Fdtn Trust-Contract Baseline,COMMUNITY SERVICES,SHEFFIELD CHILDRENS NHS FOUNDATION TRUST,24203592,"318,731.00 "
Department of Health,NHS Sheffield CCG,31/10/2018,Hcare Srv Rec Fdtn Trust-Contract Baseline,HIGH COST DRUGS,SHEFFIELD CHILDRENS NHS FOUNDATION TRUST,24203592,"62,433.00 "
Department of Health,NHS Sheffield CCG,31/10/2018,Hcare Srv Rec Fdtn Trust-Contract Baseline,MENTAL HEALTH CONTRACTS,SHEFFIELD CHILDRENS NHS FOUNDATION TRUST,24203592,"5,096.00 "
Department of Health,NHS Sheffield CCG,31/10/2018,Hcare Srv Rec Fdtn Trust-Contract Baseline,PLANNED CARE,SHEFFIELD CHILDRENS NHS FOUNDATION TRUST,24203592,"956,921.00 "
Department of Health,NHS Sheffield CCG,31/10/2018,Hcare Srv Rec Fdtn Trust-Contract Baseline,SAFEGUARDING,SHEFFIELD CHILDRENS NHS FOUNDATION TRUST,24203592,"33,664.00 "
Department of Health,NHS Sheffield CCG,31/10/2018,Hcare Srv Rec Fdtn Trust-Contract Baseline,URGENT CARE,SHEFFIELD CHILDRENS NHS FOUNDATION TRUST,24203592,"983,413.00 "
Department of Health,NHS Sheffield CCG,31/10/2018,Hcare Srv Rec Fdtn Trust-CQUIN,ACUTE CHILDRENS SERVICES,SHEFFIELD CHILDRENS NHS FOUNDATION TRUST,24204209,"22,169.00 "
Department of Health,NHS Sheffield CCG,31/10/2018,Hcare Srv Rec Fdtn Trust-CQUIN,COMMUNITY SERVICES,SHEFFIELD CHILDRENS NHS FOUNDATION TRUST,24204209,"3,930.00 "
Department of Health,NHS Sheffield CCG,31/10/2018,Hcare Srv Rec Fdtn Trust-Contract Baseline,ACUTE CHILDRENS SERVICES,SHEFFIELD CHILDRENS NHS FOUNDATION TRUST,24204209,"(17,826.00)"
Department of Health,NHS Sheffield CCG,31/10/2018,Hcare Srv Rec Fdtn Trust-Contract Baseline,CHILD AND ADOLESCENT MENTAL HEALTH,SHEFFIELD CHILDRENS NHS FOUNDATION TRUST,24204209,"32,238.00 "
Department of Health,NHS Sheffield CCG,31/10/2018,Hcare Srv Rec Fdtn Trust-Contract Baseline,COMMUNITY SERVICES,SHEFFIELD CHILDRENS NHS FOUNDATION TRUST,24204209,"(2,220.00)"
Department of Health,NHS Sheffield CCG,31/10/2018,Hcare Srv Rec Fdtn Trust-Contract Baseline,HIGH COST DRUGS,SHEFFIELD CHILDRENS NHS FOUNDATION TRUST,24204209,"4,786.00 "
Department of Health,NHS Sheffield CCG,31/10/2018,Hcare Srv Rec Fdtn Trust-Contract Baseline,PLANNED CARE,SHEFFIELD CHILDRENS NHS FOUNDATION TRUST,24204209,"(125,240.00)"
Department of Health,NHS Sheffield CCG,31/10/2018,Hcare Srv Rec Fdtn Trust-Contract Baseline,URGENT CARE,SHEFFIELD CHILDRENS NHS FOUNDATION TRUST,24204209,"(353,699.00)"
Department of Health,NHS Sheffield CCG,31/10/2018,Hcare Srv Rec Fdtn Trust-CQUIN,ACUTE CHILDRENS SERVICES,SHEFFIELD CHILDRENS NHS FOUNDATION TRUST,24435759,"33,781.00 "
Department of Health,NHS Sheffield CCG,31/10/2018,Hcare Srv Rec Fdtn Trust-CQUIN,COMMUNITY SERVICES,SHEFFIELD CHILDRENS NHS FOUNDATION TRUST,24435759,"3,984.00 "
Department of Health,NHS Sheffield CCG,31/10/2018,Hcare Srv Rec Fdtn Trust-Contract Baseline,ACUTE CHILDRENS SERVICES,SHEFFIELD CHILDRENS NHS FOUNDATION TRUST,24435759,"259,425.79 "
Department of Health,NHS Sheffield CCG,31/10/2018,Hcare Srv Rec Fdtn Trust-Contract Baseline,CHILD AND ADOLESCENT MENTAL HEALTH,SHEFFIELD CHILDRENS NHS FOUNDATION TRUST,24435759,"429,451.00 "
Department of Health,NHS Sheffield CCG,31/10/2018,Hcare Srv Rec Fdtn Trust-Contract Baseline,COMMUNITY SERVICES,SHEFFIELD CHILDRENS NHS FOUNDATION TRUST,24435759,"318,731.00 "
Department of Health,NHS Sheffield CCG,31/10/2018,Hcare Srv Rec Fdtn Trust-Contract Baseline,HIGH COST DRUGS,SHEFFIELD CHILDRENS NHS FOUNDATION TRUST,24435759,"62,433.00 "
Department of Health,NHS Sheffield CCG,31/10/2018,Hcare Srv Rec Fdtn Trust-Contract Baseline,MENTAL HEALTH CONTRACTS,SHEFFIELD CHILDRENS NHS FOUNDATION TRUST,24435759,"5,096.00 "
Department of Health,NHS Sheffield CCG,31/10/2018,Hcare Srv Rec Fdtn Trust-Contract Baseline,PLANNED CARE,SHEFFIELD CHILDRENS NHS FOUNDATION TRUST,24435759,"956,921.00 "
Department of Health,NHS Sheffield CCG,31/10/2018,Hcare Srv Rec Fdtn Trust-Contract Baseline,SAFEGUARDING,SHEFFIELD CHILDRENS NHS FOUNDATION TRUST,24435759,"33,664.00 "
Department of Health,NHS Sheffield CCG,31/10/2018,Hcare Srv Rec Fdtn Trust-Contract Baseline,URGENT CARE,SHEFFIELD CHILDRENS NHS FOUNDATION TRUST,24435759,"983,413.00 "
Department of Health,NHS Sheffield CCG,31/10/2018,Services From Local Authorities,CONTINUING HEALTHCARE ASSESSMENT & SUPPORT,SHEFFIELD CITY COUNCIL,24088609,"50,000.00 "
Department of Health,NHS Sheffield CCG,31/10/2018,Cont Care- Prior Year Payments,CHC ADULT FULLY FUNDED,SHEFFIELD CITY COUNCIL,24204226,"25,694.17 "
Department of Health,NHS Sheffield CCG,31/10/2018,Clinical&Medical-Othe Public Sector,COMMUNITY SERVICES,SHEFFIELD CITY COUNCIL,24260661,"21,831.00 "
Department of Health,NHS Sheffield CCG,31/10/2018,Clinical&Medical-Othe Public Sector,MENTAL HEALTH SERVICES - COLLABORATIVE COMMISSIONING,SHEFFIELD CITY COUNCIL,24260661,"16,919.00 "
Department of Health,NHS Sheffield CCG,31/10/2018,Clinical&Medical-Othe Public Sector,REABLEMENT,SHEFFIELD CITY COUNCIL,24260661,"160,417.00 "
Department of Health,NHS Sheffield CCG,31/10/2018,Clinical&Medical-Othe Public Sector,SAFEGUARDING,SHEFFIELD CITY COUNCIL,24260661,"15,324.00 "
Department of Health,NHS Sheffield CCG,31/10/2018,Soc Care-Joint H&C Teams/Working,INTERMEDIATE CARE,SHEFFIELD CITY COUNCIL,24260661,"151,447.00 "
Department of Health,NHS Sheffield CCG,31/10/2018,Soc Care-Other Soc Care,COMMUNITY SERVICES,SHEFFIELD CITY COUNCIL,24260661,"1,467,750.00 "
Department of Health,NHS Sheffield CCG,31/10/2018,Soc Care-Support Prim Care,COMMUNITY SERVICES,SHEFFIELD CITY COUNCIL,24260661,"58,000.00 "
Department of Health,NHS Sheffield CCG,31/10/2018,Cont Care-Physical Disab (65+),CHC ADULT FULLY FUNDED,SHEFFIELD CITY COUNCIL,24260788,"869,618.53 "
Department of Health,NHS Sheffield CCG,31/10/2018,Cont Care- Children,CHC CHILDREN,SHEFFIELD CITY COUNCIL,24435841,"34,820.98 "
Department of Health,NHS Sheffield CCG,31/10/2018,Hcare Srv Rec Fdtn Trust-Contract Baseline,MENTAL HEALTH CONTRACTS,SHEFFIELD HEALTH & SOCIAL CARE NHS FOUNDATION TRUST,24204227,"958,709.43 "
Department of Health,NHS Sheffield CCG,31/10/2018,Hcare Srv Rec Fdtn Trust-Contract Baseline,MENTAL HEALTH CONTRACTS,SHEFFIELD HEALTH & SOCIAL CARE NHS FOUNDATION TRUST,24204229,"150,000.00 "
Department of Health,NHS Sheffield CCG,31/10/2018,C&M-APMS Contract Value,PRC DELEGATED CO-COMMISSIONING,SHEFFIELD HEALTH & SOCIAL CARE NHS FOUNDATION TRUST,24215554,"131,585.17 "
Department of Health,NHS Sheffield CCG,31/10/2018,C&M-APMS OOH Opt Outs,PRC DELEGATED CO-COMMISSIONING,SHEFFIELD HEALTH & SOCIAL CARE NHS FOUNDATION TRUST,24215554,5.00 
Department of Health,NHS Sheffield CCG,31/10/2018,C&M-APMS Prem Actual Rent,PRC DELEGATED CO-COMMISSIONING,SHEFFIELD HEALTH & SOCIAL CARE NHS FOUNDATION TRUST,24215554,"5,169.68 "
Department of Health,NHS Sheffield CCG,31/10/2018,C&M-APMS Prem Healthcentre Rent,PRC DELEGATED CO-COMMISSIONING,SHEFFIELD HEALTH & SOCIAL CARE NHS FOUNDATION TRUST,24215554,"59,021.14 "
Department of Health,NHS Sheffield CCG,31/10/2018,C&M-APMS Prem Notional Rent,PRC DELEGATED CO-COMMISSIONING,SHEFFIELD HEALTH & SOCIAL CARE NHS FOUNDATION TRUST,24215554,"2,804.17 "
Department of Health,NHS Sheffield CCG,31/10/2018,C&M-PMS Contract Value,PRC DELEGATED CO-COMMISSIONING,SHEFFIELD HEALTH & SOCIAL CARE NHS FOUNDATION TRUST,24215554,"2,915.63 "
Department of Health,NHS Sheffield CCG,31/10/2018,C&M-PMS Out of Hours Opt Outs,PRC DELEGATED CO-COMMISSIONING,SHEFFIELD HEALTH & SOCIAL CARE NHS FOUNDATION TRUST,24215554,107.98 
Department of Health,NHS Sheffield CCG,31/10/2018,C&M-PMS QOF Aspiration,PRC DELEGATED CO-COMMISSIONING,SHEFFIELD HEALTH & SOCIAL CARE NHS FOUNDATION TRUST,24215554,"11,714.38 "
Department of Health,NHS Sheffield CCG,31/10/2018,C&M-APMS Contract Value,PRC DELEGATED CO-COMMISSIONING,SHEFFIELD HEALTH & SOCIAL CARE NHS FOUNDATION TRUST,24215558,"28,755.88 "
Department of Health,NHS Sheffield CCG,31/10/2018,C&M-APMS OOH Opt Outs,PRC DELEGATED CO-COMMISSIONING,SHEFFIELD HEALTH & SOCIAL CARE NHS FOUNDATION TRUST,24215558,8.11 
Department of Health,NHS Sheffield CCG,31/10/2018,C&M-PMS Contract Value,PRC DELEGATED CO-COMMISSIONING,SHEFFIELD HEALTH & SOCIAL CARE NHS FOUNDATION TRUST,24215558,639.51 
Department of Health,NHS Sheffield CCG,31/10/2018,C&M-PMS Out of Hours Opt Outs,PRC DELEGATED CO-COMMISSIONING,SHEFFIELD HEALTH & SOCIAL CARE NHS FOUNDATION TRUST,24215558,23.68 
Department of Health,NHS Sheffield CCG,31/10/2018,C&M-PMS QOF Aspiration,PRC DELEGATED CO-COMMISSIONING,SHEFFIELD HEALTH & SOCIAL CARE NHS FOUNDATION TRUST,24215558,"1,425.29 "
Department of Health,NHS Sheffield CCG,31/10/2018,Hcare Srv Rec Fdtn Trust-Contract Baseline,MENTAL HEALTH CONTRACTS,SHEFFIELD HEALTH & SOCIAL CARE NHS FOUNDATION TRUST,24258450,"6,391,179.25 "
Department of Health,NHS Sheffield CCG,31/10/2018,Hcare Srv Rec Fdtn Trust-Contract Baseline,MENTAL HEALTH CONTRACTS,SHEFFIELD HEALTH & SOCIAL CARE NHS FOUNDATION TRUST,24378084,"6,391,179.25 "
Department of Health,NHS Sheffield CCG,31/10/2018,Cont Care-NHSFT-Adult 100% Funded,CHC ADULT FULLY FUNDED,SHEFFIELD HEALTH & SOCIAL CARE NHS FOUNDATION TRUST,24378087,"240,830.02 "
Department of Health,NHS Sheffield CCG,31/10/2018,C&M-APMS LES Translation Fees,LOCAL ENHANCED SERVICES,SHEFFIELD HEALTH & SOCIAL CARE NHS FOUNDATION TRUST,24498230,"57,500.00 "
Department of Health,NHS Sheffield CCG,31/10/2018,C&M-APMS LES Translation Fees,LOCAL ENHANCED SERVICES,SHEFFIELD HEALTH & SOCIAL CARE NHS FOUNDATION TRUST,24498231,"57,500.00 "
Department of Health,NHS Sheffield CCG,31/10/2018,Hcare Srv Rec Fdtn Trust-Contract Baseline,ACUTE COMMISSIONING,SHEFFIELD TEACHING HOSPITALS NHS FOUNDATION TRUST,24258447,"336,801.00 "
Department of Health,NHS Sheffield CCG,31/10/2018,Hcare Srv Rec Fdtn Trust-Contract Baseline,ACUTE COMMISSIONING,SHEFFIELD TEACHING HOSPITALS NHS FOUNDATION TRUST,24258448,"27,862,481.00 "
Department of Health,NHS Sheffield CCG,31/10/2018,Hcare Srv Rec Fdtn Trust-Contract Baseline,ACUTE COMMISSIONING,SHEFFIELD TEACHING HOSPITALS NHS FOUNDATION TRUST,24258449,"3,905,387.00 "
Department of Health,NHS Sheffield CCG,31/10/2018,Hcare Srv Rec Fdtn Trust-Contract Baseline,ACUTE COMMISSIONING,SHEFFIELD TEACHING HOSPITALS NHS FOUNDATION TRUST,24258451,"1,280,880.00 "
Department of Health,NHS Sheffield CCG,31/10/2018,Hcare Srv Rec Fdtn Trust-Non Contract,LONG TERM CONDITIONS,SHEFFIELD TEACHING HOSPITALS NHS FOUNDATION TRUST,24500619,"343,500.00 "
Department of Health,NHS Sheffield CCG,31/10/2018,Hcare Srv Rec Fdtn Trust-Contract Baseline,ACUTE COMMISSIONING,SHEFFIELD TEACHING HOSPITALS NHS FOUNDATION TRUST,24500656,"(27,862,481.00)"
Department of Health,NHS Sheffield CCG,31/10/2018,Hcare Srv Rec Fdtn Trust-Contract Baseline,ACUTE COMMISSIONING,SHEFFIELD TEACHING HOSPITALS NHS FOUNDATION TRUST,24500666,"(3,905,387.00)"
Department of Health,NHS Sheffield CCG,31/10/2018,Hcare Srv Rec Fdtn Trust-Contract Baseline,ACUTE COMMISSIONING,SHEFFIELD TEACHING HOSPITALS NHS FOUNDATION TRUST,24500668,"(1,280,880.00)"
Department of Health,NHS Sheffield CCG,31/10/2018,Hcare Srv Rec Fdtn Trust-Contract Baseline,ACUTE COMMISSIONING,SHEFFIELD TEACHING HOSPITALS NHS FOUNDATION TRUST,24500669,"(336,801.00)"
Department of Health,NHS Sheffield CCG,31/10/2018,Hcare Srv Rec Fdtn Trust-Contract Baseline,ACUTE COMMISSIONING,SHEFFIELD TEACHING HOSPITALS NHS FOUNDATION TRUST,24500695,"336,801.00 "
Department of Health,NHS Sheffield CCG,31/10/2018,Hcare Srv Rec Fdtn Trust-Contract Baseline,ACUTE COMMISSIONING,SHEFFIELD TEACHING HOSPITALS NHS FOUNDATION TRUST,24500696,"3,905,387.00 "
Department of Health,NHS Sheffield CCG,31/10/2018,Hcare Srv Rec Fdtn Trust-Contract Baseline,ACUTE COMMISSIONING,SHEFFIELD TEACHING HOSPITALS NHS FOUNDATION TRUST,24500697,"27,862,481.00 "
Department of Health,NHS Sheffield CCG,31/10/2018,Hcare Srv Rec Fdtn Trust-Contract Baseline,ACUTE COMMISSIONING,SHEFFIELD TEACHING HOSPITALS NHS FOUNDATION TRUST,24500700,"1,280,879.00 "
Department of Health,NHS Sheffield CCG,31/10/2018,Hcare Srv Rec Fdtn Trust-Contract Baseline,ACUTE COMMISSIONING,SHEFFIELD TEACHING HOSPITALS NHS FOUNDATION TRUST,24509209,"27,862,481.00 "
Department of Health,NHS Sheffield CCG,31/10/2018,Hcare Srv Rec Fdtn Trust-Contract Baseline,ACUTE COMMISSIONING,SHEFFIELD TEACHING HOSPITALS NHS FOUNDATION TRUST,24509210,"1,280,880.00 "
Department of Health,NHS Sheffield CCG,31/10/2018,Hcare Srv Rec Fdtn Trust-Contract Baseline,ACUTE COMMISSIONING,SHEFFIELD TEACHING HOSPITALS NHS FOUNDATION TRUST,24509211,"336,801.00 "
Department of Health,NHS Sheffield CCG,31/10/2018,Hcare Srv Rec Fdtn Trust-Contract Baseline,ACUTE COMMISSIONING,SHEFFIELD TEACHING HOSPITALS NHS FOUNDATION TRUST,24509212,"3,905,387.00 "
Department of Health,NHS Sheffield CCG,31/10/2018,C&M-GMS Cost of Drugs -Prescribing,LOCAL ENHANCED SERVICES,SHIREGREEN MEDICAL CENTRE,24456776,689.83 
Department of Health,NHS Sheffield CCG,31/10/2018,C&M-GMS Global Sum,PRC DELEGATED CO-COMMISSIONING,SHIREGREEN MEDICAL CENTRE,24456776,"62,610.13 "
Department of Health,NHS Sheffield CCG,31/10/2018,C&M-GMS MPIG Correction Factor,PRC DELEGATED CO-COMMISSIONING,SHIREGREEN MEDICAL CENTRE,24456776,453.69 
Department of Health,NHS Sheffield CCG,31/10/2018,C&M-GMS PCO Other,PRC DELEGATED CO-COMMISSIONING,SHIREGREEN MEDICAL CENTRE,24456776,551.72 
Department of Health,NHS Sheffield CCG,31/10/2018,C&M-GMS Prem Cost Rent,PRC DELEGATED CO-COMMISSIONING,SHIREGREEN MEDICAL CENTRE,24456776,"1,792.33 "
Department of Health,NHS Sheffield CCG,31/10/2018,C&M-GMS Prem Notional Rent,PRC DELEGATED CO-COMMISSIONING,SHIREGREEN MEDICAL CENTRE,24456776,"5,375.00 "
Department of Health,NHS Sheffield CCG,31/10/2018,C&M-GMS Prem Rates,PRC DELEGATED CO-COMMISSIONING,SHIREGREEN MEDICAL CENTRE,24456776,"1,844.00 "
Department of Health,NHS Sheffield CCG,31/10/2018,C&M-GMS Prof Fees Prescribing,PRC DELEGATED CO-COMMISSIONING,SHIREGREEN MEDICAL CENTRE,24456776,112.70 
Department of Health,NHS Sheffield CCG,31/10/2018,C&M-GMS QOF Aspiration,PRC DELEGATED CO-COMMISSIONING,SHIREGREEN MEDICAL CENTRE,24456776,"6,765.83 "
Department of Health,NHS Sheffield CCG,31/10/2018,C&M-PMS Contract Value,PRC DELEGATED CO-COMMISSIONING,SLOAN MEDICAL CENTRE,24216167,"99,928.73 "
Department of Health,NHS Sheffield CCG,31/10/2018,C&M-PMS PCO Other,PRC DELEGATED CO-COMMISSIONING,SLOAN MEDICAL CENTRE,24216167,879.11 
Department of Health,NHS Sheffield CCG,31/10/2018,C&M-PMS Prem Actual Rent,PRC DELEGATED CO-COMMISSIONING,SLOAN MEDICAL CENTRE,24216167,"15,535.83 "
Department of Health,NHS Sheffield CCG,31/10/2018,C&M-PMS Prem Notional Rent,PRC DELEGATED CO-COMMISSIONING,SLOAN MEDICAL CENTRE,24216167,608.33 
Department of Health,NHS Sheffield CCG,31/10/2018,C&M-PMS Prem Rates,PRC DELEGATED CO-COMMISSIONING,SLOAN MEDICAL CENTRE,24216167,"3,083.00 "
Department of Health,NHS Sheffield CCG,31/10/2018,C&M-PMS Prem Water Rates,PRC DELEGATED CO-COMMISSIONING,SLOAN MEDICAL CENTRE,24216167,92.73 
Department of Health,NHS Sheffield CCG,31/10/2018,C&M-PMS QOF Aspiration,PRC DELEGATED CO-COMMISSIONING,SLOAN MEDICAL CENTRE,24216167,"9,952.56 "
Department of Health,NHS Sheffield CCG,31/10/2018,C&M-PMS Contract Value,PRC DELEGATED CO-COMMISSIONING,SOTHALL MEDICAL CENTRE,24216169,"75,769.41 "
Department of Health,NHS Sheffield CCG,31/10/2018,C&M-PMS Out of Hours Opt Outs,PRC DELEGATED CO-COMMISSIONING,SOTHALL MEDICAL CENTRE,24216169,2.93 
Department of Health,NHS Sheffield CCG,31/10/2018,C&M-PMS PCO Other,PRC DELEGATED CO-COMMISSIONING,SOTHALL MEDICAL CENTRE,24216169,701.89 
Department of Health,NHS Sheffield CCG,31/10/2018,C&M-PMS Prem Notional Rent,PRC DELEGATED CO-COMMISSIONING,SOTHALL MEDICAL CENTRE,24216169,"5,116.67 "
Department of Health,NHS Sheffield CCG,31/10/2018,C&M-PMS Prem Rates,PRC DELEGATED CO-COMMISSIONING,SOTHALL MEDICAL CENTRE,24216169,"1,251.00 "
Department of Health,NHS Sheffield CCG,31/10/2018,C&M-PMS Prem Water Rates,PRC DELEGATED CO-COMMISSIONING,SOTHALL MEDICAL CENTRE,24216169,75.72 
Department of Health,NHS Sheffield CCG,31/10/2018,C&M-PMS QOF Aspiration,PRC DELEGATED CO-COMMISSIONING,SOTHALL MEDICAL CENTRE,24216169,"8,691.35 "
Department of Health,NHS Sheffield CCG,31/10/2018,Cont Care- Adult 100% Fully Funded,CHC ADULT FULLY FUNDED,SOUTH YORKSHIRE HOUSING ASSOCIATION LTD,24152642,"81,249.96 "
Department of Health,NHS Sheffield CCG,31/10/2018,Cont Care-Physical Disab (<65),CHC ADULT FULLY FUNDED,SOUTH YORKSHIRE HOUSING ASSOCIATION LTD,24152678,"88,507.04 "
Department of Health,NHS Sheffield CCG,31/10/2018,Cont Care- Adult 100% Fully Funded,CHC ADULT FULLY FUNDED,SOUTH YORKSHIRE HOUSING ASSOCIATION LTD,24204120,"25,500.00 "
Department of Health,NHS Sheffield CCG,31/10/2018,Clinical&Medical-Independent Sector,MENTAL HEALTH CONTRACTS,SOUTH YORKSHIRE HOUSING ASSOCIATION LTD,24204126,"34,435.00 "
Department of Health,NHS Sheffield CCG,31/10/2018,C&M-PMS Contract Value,PRC DELEGATED CO-COMMISSIONING,SOUTHEY GREEN MEDICAL CENTRE,24216171,"27,915.63 "
Department of Health,NHS Sheffield CCG,31/10/2018,C&M-PMS Out of Hours Opt Outs,PRC DELEGATED CO-COMMISSIONING,SOUTHEY GREEN MEDICAL CENTRE,24216171,43.74 
Department of Health,NHS Sheffield CCG,31/10/2018,C&M-PMS Prem Notional Rent,PRC DELEGATED CO-COMMISSIONING,SOUTHEY GREEN MEDICAL CENTRE,24216171,"3,362.50 "
Department of Health,NHS Sheffield CCG,31/10/2018,C&M-PMS QOF Aspiration,PRC DELEGATED CO-COMMISSIONING,SOUTHEY GREEN MEDICAL CENTRE,24216171,"2,539.36 "
Department of Health,NHS Sheffield CCG,31/10/2018,C&M-GMS Cost of Drugs -Prescribing,LOCAL ENHANCED SERVICES,STANNINGTON MEDICAL CENTRE,24456779,416.18 
Department of Health,NHS Sheffield CCG,31/10/2018,C&M-GMS Global Sum,PRC DELEGATED CO-COMMISSIONING,STANNINGTON MEDICAL CENTRE,24456779,"26,406.33 "
Department of Health,NHS Sheffield CCG,31/10/2018,C&M-GMS PCO Other,PRC DELEGATED CO-COMMISSIONING,STANNINGTON MEDICAL CENTRE,24456779,257.66 
Department of Health,NHS Sheffield CCG,31/10/2018,C&M-GMS Prem Notional Rent,PRC DELEGATED CO-COMMISSIONING,STANNINGTON MEDICAL CENTRE,24456779,"2,575.00 "
Department of Health,NHS Sheffield CCG,31/10/2018,C&M-GMS Prem Rates,PRC DELEGATED CO-COMMISSIONING,STANNINGTON MEDICAL CENTRE,24456779,368.00 
Department of Health,NHS Sheffield CCG,31/10/2018,C&M-GMS Prem Water Rates,PRC DELEGATED CO-COMMISSIONING,STANNINGTON MEDICAL CENTRE,24456779,189.06 
Department of Health,NHS Sheffield CCG,31/10/2018,C&M-GMS Prof Fees Prescribing,PRC DELEGATED CO-COMMISSIONING,STANNINGTON MEDICAL CENTRE,24456779,52.90 
Department of Health,NHS Sheffield CCG,31/10/2018,C&M-GMS QOF Aspiration,PRC DELEGATED CO-COMMISSIONING,STANNINGTON MEDICAL CENTRE,24456779,"2,850.04 "
Department of Health,NHS Sheffield CCG,31/10/2018,C&M-GMS Cost of Drugs -Prescribing,LOCAL ENHANCED SERVICES,STONECROFT MEDICAL CENTRE,24474066,892.31 
Department of Health,NHS Sheffield CCG,31/10/2018,C&M-GMS Global Sum,PRC DELEGATED CO-COMMISSIONING,STONECROFT MEDICAL CENTRE,24474066,"34,157.90 "
Department of Health,NHS Sheffield CCG,31/10/2018,C&M-GMS MPIG Correction Factor,PRC DELEGATED CO-COMMISSIONING,STONECROFT MEDICAL CENTRE,24474066,618.25 
Department of Health,NHS Sheffield CCG,31/10/2018,C&M-GMS PCO Locum Adop/Pat/Mat,PRC DELEGATED CO-COMMISSIONING,STONECROFT MEDICAL CENTRE,24474066,"2,625.88 "
Department of Health,NHS Sheffield CCG,31/10/2018,C&M-GMS PCO Other,PRC DELEGATED CO-COMMISSIONING,STONECROFT MEDICAL CENTRE,24474066,315.78 
Department of Health,NHS Sheffield CCG,31/10/2018,C&M-GMS Prem Notional Rent,PRC DELEGATED CO-COMMISSIONING,STONECROFT MEDICAL CENTRE,24474066,"2,808.33 "
Department of Health,NHS Sheffield CCG,31/10/2018,C&M-GMS Prem Rates,PRC DELEGATED CO-COMMISSIONING,STONECROFT MEDICAL CENTRE,24474066,"1,188.00 "
Department of Health,NHS Sheffield CCG,31/10/2018,C&M-GMS Prof Fees Prescribing,PRC DELEGATED CO-COMMISSIONING,STONECROFT MEDICAL CENTRE,24474066,94.30 
Department of Health,NHS Sheffield CCG,31/10/2018,C&M-GMS QOF Aspiration,PRC DELEGATED CO-COMMISSIONING,STONECROFT MEDICAL CENTRE,24474066,"4,160.47 "
Department of Health,NHS Sheffield CCG,31/10/2018,Clinical&Medical-Independent Sector,MENTAL HEALTH CONTRACTS,SUSASH GB LTD T/A EAGLE HOUSE,24204128,"30,092.00 "
Department of Health,NHS Sheffield CCG,31/10/2018,Cont Care-Physical Disab (<65),CHC ADULT FULLY FUNDED,SUSASH GB LTD T/A EAGLE HOUSE,24204144,"32,607.80 "
Department of Health,NHS Sheffield CCG,31/10/2018,C&M-GMS Global Sum,PRC DELEGATED CO-COMMISSIONING,TOTLEY RISE MEDICAL CENTRE,24456781,"25,977.18 "
Department of Health,NHS Sheffield CCG,31/10/2018,C&M-GMS MPIG Correction Factor,PRC DELEGATED CO-COMMISSIONING,TOTLEY RISE MEDICAL CENTRE,24456781,103.13 
Department of Health,NHS Sheffield CCG,31/10/2018,C&M-GMS Prem Notional Rent,PRC DELEGATED CO-COMMISSIONING,TOTLEY RISE MEDICAL CENTRE,24456781,"1,491.67 "
Department of Health,NHS Sheffield CCG,31/10/2018,C&M-GMS Prem Rates,PRC DELEGATED CO-COMMISSIONING,TOTLEY RISE MEDICAL CENTRE,24456781,151.00 
Department of Health,NHS Sheffield CCG,31/10/2018,C&M-GMS QOF Aspiration,PRC DELEGATED CO-COMMISSIONING,TOTLEY RISE MEDICAL CENTRE,24456781,"1,881.75 "
Department of Health,NHS Sheffield CCG,31/10/2018,C&M-GMS Cost of Drugs -Prescribing,LOCAL ENHANCED SERVICES,TRAMWAYS MEDICAL CENTRE,24456783,"2,103.82 "
Department of Health,NHS Sheffield CCG,31/10/2018,C&M-GMS Global Sum,PRC DELEGATED CO-COMMISSIONING,TRAMWAYS MEDICAL CENTRE,24456783,"65,634.57 "
Department of Health,NHS Sheffield CCG,31/10/2018,C&M-GMS PCO Other,PRC DELEGATED CO-COMMISSIONING,TRAMWAYS MEDICAL CENTRE,24456783,597.78 
Department of Health,NHS Sheffield CCG,31/10/2018,C&M-GMS Prem Cost Rent,PRC DELEGATED CO-COMMISSIONING,TRAMWAYS MEDICAL CENTRE,24456783,"4,012.75 "
Department of Health,NHS Sheffield CCG,31/10/2018,C&M-GMS Prem Rates,PRC DELEGATED CO-COMMISSIONING,TRAMWAYS MEDICAL CENTRE,24456783,980.00 
Department of Health,NHS Sheffield CCG,31/10/2018,C&M-GMS Prof Fees Prescribing,PRC DELEGATED CO-COMMISSIONING,TRAMWAYS MEDICAL CENTRE,24456783,149.50 
Department of Health,NHS Sheffield CCG,31/10/2018,C&M-GMS QOF Aspiration,PRC DELEGATED CO-COMMISSIONING,TRAMWAYS MEDICAL CENTRE,24456783,"5,780.50 "
Department of Health,NHS Sheffield CCG,31/10/2018,Cont Care-Funded Nursing Care Allow,FUNDED NURSING CARE,ULTIMA CARE CENTRES (NO1) LTD,24204157,"36,421.86 "
Department of Health,NHS Sheffield CCG,31/10/2018,C&M-GMS LES Equitable Funding,LOCAL ENHANCED SERVICES,UNIVERSITY HEALTH SERVICE,24191245,"26,202.00 "
Department of Health,NHS Sheffield CCG,31/10/2018,C&M-PMS Contract Value,PRC DELEGATED CO-COMMISSIONING,UNIVERSITY HEALTH SERVICE,24216175,"170,881.97 "
Department of Health,NHS Sheffield CCG,31/10/2018,C&M-PMS Out of Hours Opt Outs,PRC DELEGATED CO-COMMISSIONING,UNIVERSITY HEALTH SERVICE,24216175,449.08 
Department of Health,NHS Sheffield CCG,31/10/2018,C&M-PMS Prem Notional Rent,PRC DELEGATED CO-COMMISSIONING,UNIVERSITY HEALTH SERVICE,24216175,"15,833.33 "
Department of Health,NHS Sheffield CCG,31/10/2018,C&M-PMS QOF Aspiration,PRC DELEGATED CO-COMMISSIONING,UNIVERSITY HEALTH SERVICE,24216175,"3,984.72 "
Department of Health,NHS Sheffield CCG,31/10/2018,C&M-GMS Cost of Drugs -Prescribing,LOCAL ENHANCED SERVICES,UPPERTHORPE MEDICAL CENTRE,24474067,"3,616.90 "
Department of Health,NHS Sheffield CCG,31/10/2018,C&M-GMS Global Sum,PRC DELEGATED CO-COMMISSIONING,UPPERTHORPE MEDICAL CENTRE,24474067,"86,160.65 "
Department of Health,NHS Sheffield CCG,31/10/2018,C&M-GMS MPIG Correction Factor,PRC DELEGATED CO-COMMISSIONING,UPPERTHORPE MEDICAL CENTRE,24474067,"1,325.74 "
Department of Health,NHS Sheffield CCG,31/10/2018,C&M-GMS Prem Notional Rent,PRC DELEGATED CO-COMMISSIONING,UPPERTHORPE MEDICAL CENTRE,24474067,"2,497.83 "
Department of Health,NHS Sheffield CCG,31/10/2018,C&M-GMS Prem Rates,PRC DELEGATED CO-COMMISSIONING,UPPERTHORPE MEDICAL CENTRE,24474067,"2,338.00 "
Department of Health,NHS Sheffield CCG,31/10/2018,C&M-GMS Prem Water Rates,PRC DELEGATED CO-COMMISSIONING,UPPERTHORPE MEDICAL CENTRE,24474067,204.87 
Department of Health,NHS Sheffield CCG,31/10/2018,C&M-GMS Prof Fees Prescribing,PRC DELEGATED CO-COMMISSIONING,UPPERTHORPE MEDICAL CENTRE,24474067,257.60 
Department of Health,NHS Sheffield CCG,31/10/2018,C&M-GMS QOF Aspiration,PRC DELEGATED CO-COMMISSIONING,UPPERTHORPE MEDICAL CENTRE,24474067,"8,681.64 "
Department of Health,NHS Sheffield CCG,31/10/2018,C&M-PMS Contract Value,PRC DELEGATED CO-COMMISSIONING,UPWELL STREET SURGERY,24216177,"39,701.40 "
Department of Health,NHS Sheffield CCG,31/10/2018,C&M-PMS Out of Hours Opt Outs,PRC DELEGATED CO-COMMISSIONING,UPWELL STREET SURGERY,24216177,17.59 
Department of Health,NHS Sheffield CCG,31/10/2018,C&M-PMS PCO Other,PRC DELEGATED CO-COMMISSIONING,UPWELL STREET SURGERY,24216177,357.44 
Department of Health,NHS Sheffield CCG,31/10/2018,C&M-PMS Prem Notional Rent,PRC DELEGATED CO-COMMISSIONING,UPWELL STREET SURGERY,24216177,"8,137.50 "
Department of Health,NHS Sheffield CCG,31/10/2018,C&M-PMS Prem Rates,PRC DELEGATED CO-COMMISSIONING,UPWELL STREET SURGERY,24216177,"1,265.00 "
Department of Health,NHS Sheffield CCG,31/10/2018,C&M-PMS QOF Aspiration,PRC DELEGATED CO-COMMISSIONING,UPWELL STREET SURGERY,24216177,"4,294.99 "
Department of Health,NHS Sheffield CCG,31/10/2018,C&M-PMS Contract Value,PRC DELEGATED CO-COMMISSIONING,VALLEY MEDICAL CENTRE,24216179,"83,323.13 "
Department of Health,NHS Sheffield CCG,31/10/2018,C&M-PMS Out of Hours Opt Outs,PRC DELEGATED CO-COMMISSIONING,VALLEY MEDICAL CENTRE,24216179,6.03 
Department of Health,NHS Sheffield CCG,31/10/2018,C&M-PMS Prem Rates,PRC DELEGATED CO-COMMISSIONING,VALLEY MEDICAL CENTRE,24216179,"1,254.00 "
Department of Health,NHS Sheffield CCG,31/10/2018,C&M-PMS QOF Aspiration,PRC DELEGATED CO-COMMISSIONING,VALLEY MEDICAL CENTRE,24216179,"8,516.48 "
Department of Health,NHS Sheffield CCG,31/10/2018,C&M-GMS Cost of Drugs -Prescribing,LOCAL ENHANCED SERVICES,WALKLEY HOUSE MEDICAL CENTRE,24456791,"1,973.00 "
Department of Health,NHS Sheffield CCG,31/10/2018,C&M-GMS Global Sum,PRC DELEGATED CO-COMMISSIONING,WALKLEY HOUSE MEDICAL CENTRE,24456791,"90,481.47 "
Department of Health,NHS Sheffield CCG,31/10/2018,C&M-GMS Prem Notional Rent,PRC DELEGATED CO-COMMISSIONING,WALKLEY HOUSE MEDICAL CENTRE,24456791,"5,635.50 "
Department of Health,NHS Sheffield CCG,31/10/2018,C&M-GMS Prem Rates,PRC DELEGATED CO-COMMISSIONING,WALKLEY HOUSE MEDICAL CENTRE,24456791,"1,779.00 "
Department of Health,NHS Sheffield CCG,31/10/2018,C&M-GMS Prof Fees Prescribing,PRC DELEGATED CO-COMMISSIONING,WALKLEY HOUSE MEDICAL CENTRE,24456791,220.80 
Department of Health,NHS Sheffield CCG,31/10/2018,C&M-GMS QOF Aspiration,PRC DELEGATED CO-COMMISSIONING,WALKLEY HOUSE MEDICAL CENTRE,24456791,"8,592.68 "
Department of Health,NHS Sheffield CCG,31/10/2018,C&M-GMS Cost of Drugs -Prescribing,LOCAL ENHANCED SERVICES,WHITE HOUSE SURGERY SHEFFIELD,24456789,543.93 
Department of Health,NHS Sheffield CCG,31/10/2018,C&M-GMS Global Sum,PRC DELEGATED CO-COMMISSIONING,WHITE HOUSE SURGERY SHEFFIELD,24456789,"52,752.27 "
Department of Health,NHS Sheffield CCG,31/10/2018,C&M-GMS MPIG Correction Factor,PRC DELEGATED CO-COMMISSIONING,WHITE HOUSE SURGERY SHEFFIELD,24456789,"1,391.30 "
Department of Health,NHS Sheffield CCG,31/10/2018,C&M-GMS Prem Notional Rent,PRC DELEGATED CO-COMMISSIONING,WHITE HOUSE SURGERY SHEFFIELD,24456789,"9,104.17 "
Department of Health,NHS Sheffield CCG,31/10/2018,C&M-GMS Prem Rates,PRC DELEGATED CO-COMMISSIONING,WHITE HOUSE SURGERY SHEFFIELD,24456789,"2,211.00 "
Department of Health,NHS Sheffield CCG,31/10/2018,C&M-GMS Prof Fees Prescribing,PRC DELEGATED CO-COMMISSIONING,WHITE HOUSE SURGERY SHEFFIELD,24456789,193.20 
Department of Health,NHS Sheffield CCG,31/10/2018,C&M-GMS QOF Aspiration,PRC DELEGATED CO-COMMISSIONING,WHITE HOUSE SURGERY SHEFFIELD,24456789,"6,017.46 "
Department of Health,NHS Sheffield CCG,31/10/2018,Cont Care-Physical Disab (<65),CHC ADULT FULLY FUNDED,WILLOWBECK HEALTH CARE LTD,24152651,"130,189.00 "
Department of Health,NHS Sheffield CCG,31/10/2018,C&M-PMS Contract Value,PRC DELEGATED CO-COMMISSIONING,WINCOBANK MEDICAL CENTRE,24216183,"65,848.97 "
Department of Health,NHS Sheffield CCG,31/10/2018,C&M-PMS DES Learn Dsblty Hlth Chk,PRC DELEGATED CO-COMMISSIONING,WINCOBANK MEDICAL CENTRE,24216183,"1,400.00 "
Department of Health,NHS Sheffield CCG,31/10/2018,C&M-PMS Out of Hours Opt Outs,PRC DELEGATED CO-COMMISSIONING,WINCOBANK MEDICAL CENTRE,24216183,3.54 
Department of Health,NHS Sheffield CCG,31/10/2018,C&M-PMS Prem Healthcentre Rent,PRC DELEGATED CO-COMMISSIONING,WINCOBANK MEDICAL CENTRE,24216183,"44,024.50 "
Department of Health,NHS Sheffield CCG,31/10/2018,C&M-PMS QOF Aspiration,PRC DELEGATED CO-COMMISSIONING,WINCOBANK MEDICAL CENTRE,24216183,"6,309.99 "
Department of Health,NHS Sheffield CCG,31/10/2018,C&M-PMS Contract Value,PRC DELEGATED CO-COMMISSIONING,WOODHOUSE HEALTH CENTRE,24216181,"106,292.60 "
Department of Health,NHS Sheffield CCG,31/10/2018,C&M-PMS Prem Notional Rent,PRC DELEGATED CO-COMMISSIONING,WOODHOUSE HEALTH CENTRE,24216181,"6,338.58 "
Department of Health,NHS Sheffield CCG,31/10/2018,C&M-PMS QOF Aspiration,PRC DELEGATED CO-COMMISSIONING,WOODHOUSE HEALTH CENTRE,24216181,"13,695.89 "
Department of Health,NHS Sheffield CCG,31/10/2018,C&M-PMS Contract Value,PRC DELEGATED CO-COMMISSIONING,WOODSEATS MEDICAL CENTRE,24215556,"78,814.83 "
Department of Health,NHS Sheffield CCG,31/10/2018,C&M-PMS PCO Other,PRC DELEGATED CO-COMMISSIONING,WOODSEATS MEDICAL CENTRE,24215556,661.44 
Department of Health,NHS Sheffield CCG,31/10/2018,C&M-PMS Prem Notional Rent,PRC DELEGATED CO-COMMISSIONING,WOODSEATS MEDICAL CENTRE,24215556,"11,666.67 "
Department of Health,NHS Sheffield CCG,31/10/2018,C&M-PMS Prem Rates,PRC DELEGATED CO-COMMISSIONING,WOODSEATS MEDICAL CENTRE,24215556,"3,032.00 "
Department of Health,NHS Sheffield CCG,31/10/2018,C&M-PMS QOF Aspiration,PRC DELEGATED CO-COMMISSIONING,WOODSEATS MEDICAL CENTRE,24215556,"7,979.47 "
Department of Health,NHS Sheffield CCG,31/10/2018,Hcare Srv Rec Fdtn Trust-Non Contract,NCAS/OATS,YORK TEACHING HOSPITAL NHS FOUNDATION TRUST,24201893,"39,907.27 "
Department of Health,NHS Sheffield CCG,31/10/2018,Hcare Srv Rec NHS Trust-Contract Baseline,PATIENT TRANSPORT,YORKSHIRE AMBULANCE SERVICE NHS TRUST,24152557,"245,019.60 "
Department of Health,NHS Sheffield CCG,31/10/2018,Hcare Srv Rec NHS Trust-Contract Baseline,NHS 111,YORKSHIRE AMBULANCE SERVICE NHS TRUST,24152568,"114,923.00 "
Department of Health,NHS Sheffield CCG,31/10/2018,Hcare Srv Rec NHS Trust-Contract Baseline,AMBULANCE SERVICES,YORKSHIRE AMBULANCE SERVICE NHS TRUST,24152581,"124,103.00 "
Department of Health,NHS Sheffield CCG,31/10/2018,Hcare Srv Rec NHS Trust-CQUIN,AMBULANCE SERVICES,YORKSHIRE AMBULANCE SERVICE NHS TRUST,24152586,"34,499.00 "
Department of Health,NHS Sheffield CCG,31/10/2018,Hcare Srv Rec NHS Trust-Contract Baseline,AMBULANCE SERVICES,YORKSHIRE AMBULANCE SERVICE NHS TRUST,24152591,"1,509,029.00 "
Department of Health,NHS Sheffield CCG,31/10/2018,Hcare Srv Rec NHS Trust-Non Contract,AMBULANCE SERVICES,YORKSHIRE AMBULANCE SERVICE NHS TRUST,24435794,"60,000.00 "
,,,,,,,"102,483,957.66 "
